Workbook

Sheet Rekapitulace stavby
A1: Export VZ | D1: List obsahuje: | K1: 1) Rekapitulace stavby | W1: 2) Rekapitulace objektů stavby a soupisů prací | BS1: 1.0 | BT1: False | BU1: False | BV1: {44DE6324-F916-4D7F-87B5-257D683663E2}
C2: optimalizováno pro tisk sestav ve formátu A4 - na výšku | AR2: >> skryté sloupce << | BS2: 0,01 | BT2: 21
BS3: 0,01 | BT3: 15
C4: REKAPITULACE STAVBY | AS4: v --- níže se nacházejí doplnkové a pomocné údaje k sestavám --- v | BE4: Návod na vyplnění | BS4: 0,001
BE5: Měnit lze pouze buňky se žlutým podbarvením! 1) v Rekapitulaci stavby vyplňte údaje o Uchazeči (přenesou se do ostatních sestav i v jiných listech) 2) na vybraných listech vyplňte v sestavě Soupis prací ceny u položek Podrobnosti k vyplnění naleznete na poslední záložce s Pokyny pro vyplnění | BS5: 0,01
D6: Stavba: | K6: 120271 - OPRAVY CHODNÍKŮ | BS6: 0,1
BS7: 1
D8: Místo: | AK8: Datum: | AN8: 09.04.2014 | BS8: 10
BS9: 100
D10: Zadavatel: | AK10: IČ: | BS10: 0,1
AK11: DIČ: | BS11: 0,1
BS12: 0,1
D13: Uchazeč: | AK13: IČ: | AN13: Vyplň údaj | BS13: 0,1
E14: Vyplň údaj | AK14: DIČ: | AN14: Vyplň údaj | BS14: 0,1
BS15: True
D16: Projektant: | AK16: IČ: | BS16: False
AK17: DIČ: | BS17: True
BS18: 0,01
D19: Poznámka: | BS19: 0,1
BS20: False
D23: Cena bez DPH | AK23: =ROUNDUP($AG$49,2) -> 109278.07
D25: DPH | F25: základní | L25: 0.21 | T25: ze | W25: =ROUNDUP($AZ$49,2) -> 109278.07 | AK25: =W25*0.21 -> 22948.3947
F26: snížená | L26: 0.15 | T26: ze | W26: =ROUNDUP($BA$49,2) -> 0 | AK26: =ROUNDUP($AW$49,1) -> 0
F27: zákl. přenesená | L27: 0.21 | T27: ze | W27: =ROUNDUP($BB$49,2) -> 0 | AK27: 0
F28: sníž. přenesená | L28: 0.15 | T28: ze | W28: =ROUNDUP($BC$49,2) -> 0 | AK28: 0
F29: nulová | L29: 0 | T29: ze | W29: =ROUNDUP($BD$49,2) -> 0 | AK29: 0
D31: Cena s DPH | T31: v | X31: CZK | AK31: =AK25+AK23 -> 132226.4647
C38: REKAPITULACE OBJEKTŮ STAVBY A SOUPISŮ PRACÍ
C40: Stavba: | L40: =$K$6 -> 120271 - OPRAVY CHODNÍKŮ
C42: Místo: | L42: =IF($K$8="","",$K$8) ->  | AI42: Datum: | AM42: =IF($AN$8="","",$AN$8) -> 09.04.2014
C44: Zadavatel: | L44: =IF($E$11="","",$E$11) ->  | AI44: Projektant: | AM44: =IF($E$17="","",$E$17) ->  | AS44: Informatívní údaje z listů zakázek
C45: Uchazeč: | L45: =IF($E$14="Vyplň údaj","",$E$14) -> 
C47: Kód | I47: Objekt, Soupis prací | AG47: Cena bez DPH [CZK] | AN47: Cena s DPH [CZK] | AQ47: Typ | AS47: z toho Ostat. náklady [CZK] | AT47: DPH [CZK] | AU47: Normohodiny [h] | AV47: DPH základní [CZK] | AW47: DPH snížená [CZK] | AX47: DPH základní přenesená [CZK] | AY47: DPH snížená přenesená [CZK] | AZ47: Základna DPH základní | BA47: Základna DPH snížená | BB47: Základna DPH zákl. přenesená | BC47: Základna DPH sníž. přenesená | BD47: Základna DPH nulová
C49: Náklady stavby celkem | AG49: =ROUNDUP(SUM($AG$50:$AG$51),2) -> 109278.07 | AN49: =AG49*1.21 -> 132226.4647 | AS49: =ROUNDUP(SUM($AS$50:$AS$51),2) -> 0 | AT49: =ROUNDUP(SUM($AV$49:$AW$49),1) -> 22948.4 | AU49: =ROUNDUP(SUM($AU$50:$AU$51),5) -> 0 | AV49: =ROUNDUP($AZ$49*$L$25,2) -> 22948.4 | AW49: =ROUNDUP($BA$49*$L$26,2) -> 0 | AX49: =ROUNDUP($BB$49*$L$25,2) -> 0 | AY49: =ROUNDUP($BC$49*$L$26,2) -> 0 | AZ49: =ROUNDUP(SUM($AZ$50:$AZ$51),2) -> 109278.07 | BA49: =ROUNDUP(SUM($BA$50:$BA$51),2) -> 0 | BB49: =ROUNDUP(SUM($BB$50:$BB$51),2) -> 0 | BC49: =ROUNDUP(SUM($BC$50:$BC$51),2) -> 0 | BD49: =ROUNDUP(SUM($BD$50:$BD$51),2) -> 0 | BS49: D | BT49: 0 | BU49: ###NOIMPORT### | BV49: IMPORT | BW49: {44DE6324-F916-4D7F-87B5-257D683663E2} | BX49: {00000000-0000-0000-0000-000000000000} | CL49: 822 29
A50: / | D50: 001 | J50: PLOCHA U AUTOBUSOVÉ ZASTÁVKY DRUŽEBNÍ | AG50: ='001 - PLOCHA U AUTOBUSOVÉ...'!$M$25 -> 40418.24 | AN50: =AG50*1.21 -> 48906.0704 | AQ50: ING | AS50: 0 | AT50: =ROUNDUP(SUM($AV$50:$AW$50),1) -> 8487.9 | AU50: ='001 - PLOCHA U AUTOBUSOVÉ...'!$W$75 -> 0 | AV50: ='001 - PLOCHA U AUTOBUSOVÉ...'!$M$27 -> 8487.8304 | AW50: ='001 - PLOCHA U AUTOBUSOVÉ...'!$M$28 -> 0 | AX50: ='001 - PLOCHA U AUTOBUSOVÉ...'!$M$29 -> 0 | AY50: ='001 - PLOCHA U AUTOBUSOVÉ...'!$M$30 -> 0 | AZ50: ='001 - PLOCHA U AUTOBUSOVÉ...'!$H$27 -> 40418.24 | BA50: ='001 - PLOCHA U AUTOBUSOVÉ...'!$H$28 -> 0 | BB50: ='001 - PLOCHA U AUTOBUSOVÉ...'!$H$29 -> 0 | BC50: ='001 - PLOCHA U AUTOBUSOVÉ...'!$H$30 -> 0 | BD50: ='001 - PLOCHA U AUTOBUSOVÉ...'!$H$31 -> 0 | BT50: 1 | BV50: IMPORT | BW50: {13F90C6E-5D2C-4F08-8394-D6A3688FDFF1} | BX50: {44DE6324-F916-4D7F-87B5-257D683663E2} | CL50: 822 29 | CM50: 2
A51: / | D51: 002 | J51: SPOJOVACÍ CHODNÍK | AG51: ='002 - SPOJOVACÍ CHODNÍK'!$M$25 -> 68859.83 | AN51: =AG51*1.21 -> 83320.3943 | AQ51: STA | AS51: 0 | AT51: =ROUNDUP(SUM($AV$51:$AW$51),1) -> 14460.6 | AU51: ='002 - SPOJOVACÍ CHODNÍK'!$W$76 -> 0 | AV51: ='002 - SPOJOVACÍ CHODNÍK'!$M$27 -> 14460.5643 | AW51: ='002 - SPOJOVACÍ CHODNÍK'!$M$28 -> 0 | AX51: ='002 - SPOJOVACÍ CHODNÍK'!$M$29 -> 0 | AY51: ='002 - SPOJOVACÍ CHODNÍK'!$M$30 -> 0 | AZ51: ='002 - SPOJOVACÍ CHODNÍK'!$H$27 -> 68859.83 | BA51: ='002 - SPOJOVACÍ CHODNÍK'!$H$28 -> 0 | BB51: ='002 - SPOJOVACÍ CHODNÍK'!$H$29 -> 0 | BC51: ='002 - SPOJOVACÍ CHODNÍK'!$H$30 -> 0 | BD51: ='002 - SPOJOVACÍ CHODNÍK'!$H$31 -> 0 | BT51: 1 | BV51: IMPORT | BW51: {0D8A28A8-66F5-4983-967B-C2067DEE49F7} | BX51: {44DE6324-F916-4D7F-87B5-257D683663E2} | CL51: 822 29 | CM51: 2

Sheet 001 - PLOCHA U AUTOBUSOVÉ...
D1: List obsahuje: | F1: 1) Krycí list soupisu | H1: 2) Rekapitulace | L1: 3) Soupis prací | O1: Zpět na list: | S1: Rekapitulace stavby
C2: optimalizováno pro tisk sestav ve formátu A4 - na výšku | S2: >> skryté sloupce << | AT2: {13F90C6E-5D2C-4F08-8394-D6A3688FDFF1}
AT3: 2
C4: KRYCÍ LIST SOUPISU | T4: v --- níže se nacházejí doplnkové a pomocné údaje k sestavám --- v | AT4: False
D6: Stavba: | F6: ='Rekapitulace stavby'!$K$6 -> 120271 - OPRAVY CHODNÍKŮ
D7: Objekt: | F7: 001 - PLOCHA U AUTOBUSOVÉ ZASTÁVKY DRUŽEBNÍ
D9: KSO: | F9: 822 29
D10: Místo: | M10: Datum: | O10: ='Rekapitulace stavby'!$AN$8 -> 09.04.2014
D12: Zadavatel: | M12: IČ: | O12: =IF('Rekapitulace stavby'!$AN$10="","",'Rekapitulace stavby'!$AN$10) -> 
E13: =IF('Rekapitulace stavby'!$E$11="","",'Rekapitulace stavby'!$E$11) ->  | M13: DIČ: | O13: =IF('Rekapitulace stavby'!$AN$11="","",'Rekapitulace stavby'!$AN$11) -> 
D15: Uchazeč: | M15: IČ: | O15: =IF('Rekapitulace stavby'!$AN$13="","",'Rekapitulace stavby'!$AN$13) -> Vyplň údaj
E16: =IF('Rekapitulace stavby'!$E$14="","",'Rekapitulace stavby'!$E$14) -> Vyplň údaj | M16: DIČ: | O16: =IF('Rekapitulace stavby'!$AN$14="","",'Rekapitulace stavby'!$AN$14) -> Vyplň údaj
D18: Projektant: | M18: IČ: | O18: =IF('Rekapitulace stavby'!$AN$16="","",'Rekapitulace stavby'!$AN$16) -> 
E19: =IF('Rekapitulace stavby'!$E$17="","",'Rekapitulace stavby'!$E$17) ->  | M19: DIČ: | O19: =IF('Rekapitulace stavby'!$AN$17="","",'Rekapitulace stavby'!$AN$17) -> 
D21: Poznámka:
D25: Cena bez DPH | M25: =ROUNDUP($N$75,2) -> 40418.24
D27: DPH | E27: základní | F27: 0.21 | G27: ze | H27: =SUM($BE$75:$BE$167) -> 40418.24 | M27: =SUM($BE$75:$BE$167)*$F$27 -> 8487.8304
E28: snížená | F28: 0.15 | G28: ze | H28: =SUM($BF$75:$BF$167) -> 0 | M28: =SUM($BF$75:$BF$167)*$F$28 -> 0
E29: zákl. přenesená | F29: 0.21 | G29: ze | H29: =SUM($BG$75:$BG$167) -> 0 | M29: 0
E30: sníž. přenesená | F30: 0.15 | G30: ze | H30: =SUM($BH$75:$BH$167) -> 0 | M30: 0
E31: nulová | F31: 0 | G31: ze | H31: =SUM($BI$75:$BI$167) -> 0 | M31: 0
D33: Cena s DPH | G33: v | H33: CZK | L33: =ROUNDUP(SUM($M$25:$M$31),2) -> 48906.08
C39: REKAPITULACE ČLENĚNÍ SOUPISU PRACÍ
C41: Stavba: | F41: =$F$6 -> 120271 - OPRAVY CHODNÍKŮ
C42: Objekt: | F42: =$F$7 -> 001 - PLOCHA U AUTOBUSOVÉ ZASTÁVKY DRUŽEBNÍ
C44: Místo: | F44: =$F$10 ->  | K44: Datum: | M44: =IF($O$10="","",$O$10) -> 09.04.2014
C46: Zadavatel: | F46: =$E$13 ->  | K46: Projektant: | M46: =$E$19 -> 
C47: Uchazeč: | F47: =IF($E$16="","",$E$16) -> Vyplň údaj
C49: Kód dílu - Popis | N49: Cena celkem [CZK]
C51: Náklady soupisu celkem | N51: =ROUNDUP($N$75,2) -> 40418.24 | AU51: -1
D52: HSV - Práce a dodávky HSV | N52: =ROUNDUP($N$76,2) -> 40418.24
D53: 1 - Zemní práce | N53: =ROUNDUP($N$77,2) -> 7944.28
D54: 2 - Zakládání | N54: =ROUNDUP($N$120,2) -> 346.68
D55: 5 - Komunikace | N55: =ROUNDUP($N$124,2) -> 11612.5
D56: 9 - Ostatní konstrukce a práce-bourání | N56: =ROUNDUP($N$139,2) -> 20514.78
D57: 99 - Přesun hmot | N57: =ROUNDUP($N$156,2) -> 7671.92
C64: SOUPIS PRACÍ
C66: Stavba: | F66: =$F$6 -> 120271 - OPRAVY CHODNÍKŮ
C67: Objekt: | F67: =$F$7 -> 001 - PLOCHA U AUTOBUSOVÉ ZASTÁVKY DRUŽEBNÍ
C69: Místo: | F69: =$F$10 ->  | K69: Datum: | M69: =IF($O$10="","",$O$10) -> 09.04.2014
C71: Zadavatel: | F71: =$E$13 ->  | K71: Projektant: | M71: =$E$19 -> 
C72: Uchazeč: | F72: =IF($E$16="","",$E$16) -> Vyplň údaj
C74: PČ | D74: Typ | E74: Kód | F74: Popis | J74: MJ | K74: Množství | L74: J.cena [CZK] | N74: Cena celkem [CZK] | R74: Cenová soustava | T74: Poznámka | U74: DPH | V74: J. Nh [h] | W74: Nh celkem [h] | X74: J. hmotnost [t] | Y74: Hmotnost celkem [t] | Z74: J. suť [t] | AA74: Suť Celkem [t]
C75: Náklady soupisu celkem | N75: =$BK$75 -> 40418.24 | W75: =$W$76 -> 0 | Y75: =$Y$76 -> 33.73617224 | AA75: =$AA$76 -> 18.712 | AT75: D | AU75: -1 | BK75: =$BK$76 -> 40418.24
D76: HSV - Práce a dodávky HSV | N76: =$BK$76 -> 40418.24 | W76: =$W$77+$W$120+$W$124+$W$139 -> 0 | Y76: =$Y$77+$Y$120+$Y$124+$Y$139 -> 33.73617224 | AA76: =$AA$77+$AA$120+$AA$124+$AA$139 -> 18.712 | AR76: 1 | AT76: D | AU76: 0 | AY76: ROZPOCET | BK76: =$BK$77+$BK$120+$BK$124+$BK$139 -> 40418.24
D77: 1 - Zemní práce | N77: =$BK$77 -> 7944.28 | W77: =SUM($W$78:$W$119) -> 0 | Y77: =SUM($Y$78:$Y$119) -> 6.200085 | AA77: =SUM($AA$78:$AA$119) -> 18.538 | AR77: 1 | AT77: D | AU77: 1 | AY77: ROZPOCET | BK77: =SUM($BK$78:$BK$119) -> 7944.28
C78: 1 | D78: K | E78: 113107032 | F78: Odstranění podkladu plochy do 15 m2 z betonu prostého tl 300 mm při překopech inž sítí | J78: m2 | K78: 31 | L78: 125 | N78: =ROUND($L$78*$K$78,2) -> 3875 | R78: CS ÚRS 2013 01 | U78: základní | X78: 0 | Y78: =$X$78*$K$78 -> 0 | Z78: 0.5 | AA78: =$Z$78*$K$78 -> 15.5 | AR78: 4 | AT78: K | AU78: 2 | AY78: ROZPOCET | BE78: =IF($U$78="základní",$N$78,0) -> 3875 | BF78: =IF($U$78="snížená",$N$78,0) -> 0 | BG78: =IF($U$78="zákl. přenesená",$N$78,0) -> 0 | BH78: =IF($U$78="sníž. přenesená",$N$78,0) -> 0 | BI78: =IF($U$78="nulová",$N$78,0) -> 0 | BJ78: 1 | BK78: =ROUND($L$78*$K$78,2) -> 3875 | BL78: 4 | BM78: 1592066615
F79: Odstranění podkladů nebo krytů při překopech inženýrských sítí v ploše jednotlivě do 15 m2 s přemístěním hmot na skládku ve vzdálenosti do 3 m nebo s naložením na dopravní prostředek z betonu prostého, o tl. vrstvy přes 150 do 300 mm | AT79: PP | AU79: 2
C80: 2 | D80: K | E80: 113107041 | F80: Odstranění podkladu plochy do 15 m2 živičných tl 50 mm při překopech inž sítí | J80: m2 | K80: 31 | L80: 50 | N80: =ROUND($L$80*$K$80,2) -> 1550 | R80: CS ÚRS 2013 01 | U80: základní | X80: 0 | Y80: =$X$80*$K$80 -> 0 | Z80: 0.098 | AA80: =$Z$80*$K$80 -> 3.038 | AR80: 4 | AT80: K | AU80: 2 | AY80: ROZPOCET | BE80: =IF($U$80="základní",$N$80,0) -> 1550 | BF80: =IF($U$80="snížená",$N$80,0) -> 0 | BG80: =IF($U$80="zákl. přenesená",$N$80,0) -> 0 | BH80: =IF($U$80="sníž. přenesená",$N$80,0) -> 0 | BI80: =IF($U$80="nulová",$N$80,0) -> 0 | BJ80: 1 | BK80: =ROUND($L$80*$K$80,2) -> 1550 | BL80: 4 | BM80: -516997865
F81: Odstranění podkladů nebo krytů při překopech inženýrských sítí v ploše jednotlivě do 15 m2 s přemístěním hmot na skládku ve vzdálenosti do 3 m nebo s naložením na dopravní prostředek živičných, o tl. vrstvy do 50 mm | AT81: PP | AU81: 2
C82: 3 | D82: K | E82: 122201401 | F82: Vykopávky v zemníku na suchu v hornině tř. 3 objem do 100 m3 | J82: m3 | K82: 3.1 | L82: 100 | N82: =ROUND($L$82*$K$82,2) -> 310 | R82: CS ÚRS 2013 01 | U82: základní | X82: 0 | Y82: =$X$82*$K$82 -> 0 | Z82: 0 | AA82: =$Z$82*$K$82 -> 0 | AR82: 4 | AT82: K | AU82: 2 | AY82: ROZPOCET | BE82: =IF($U$82="základní",$N$82,0) -> 310 | BF82: =IF($U$82="snížená",$N$82,0) -> 0 | BG82: =IF($U$82="zákl. přenesená",$N$82,0) -> 0 | BH82: =IF($U$82="sníž. přenesená",$N$82,0) -> 0 | BI82: =IF($U$82="nulová",$N$82,0) -> 0 | BJ82: 1 | BK82: =ROUND($L$82*$K$82,2) -> 310 | BL82: 4 | BM82: -1272840776
F83: Vykopávky v zemnících na suchu s přehozením výkopku na vzdálenost do 3 m nebo s naložením na dopravní prostředek v hornině tř. 3 do 100 m3 | AT83: PP | AU83: 2
F84: "materiál na zásyp"3,1 | K84: 3.1 | AT84: VV | AU84: 2 | AV84: 2 | AW84: -1 | AX84: 1 | AY84: ROZPOCET
C85: 4 | D85: M | E85: 583312000 | F85: materiál vhodný do násypu | J85: t | K85: 6.2 | L85: 300 | N85: =ROUND($L$85*$K$85,2) -> 1860 | R85: CS ÚRS 2013 01 | U85: základní | X85: 1 | Y85: =$X$85*$K$85 -> 6.2 | Z85: 0 | AA85: =$Z$85*$K$85 -> 0 | AR85: 8 | AT85: M | AU85: 2 | AY85: ROZPOCET | BE85: =IF($U$85="základní",$N$85,0) -> 1860 | BF85: =IF($U$85="snížená",$N$85,0) -> 0 | BG85: =IF($U$85="zákl. přenesená",$N$85,0) -> 0 | BH85: =IF($U$85="sníž. přenesená",$N$85,0) -> 0 | BI85: =IF($U$85="nulová",$N$85,0) -> 0 | BJ85: 1 | BK85: =ROUND($L$85*$K$85,2) -> 1860 | BL85: 4 | BM85: 1178815121
F86: kamenivo těžené zásypový materiál | AT86: PP | AU86: 2
F87: "materiál na zásyp"3,1*2 | K87: 6.2 | AT87: VV | AU87: 2 | AV87: 2 | AW87: -1 | AX87: 0 | AY87: ROZPOCET
F88: Součet | K88: 6.2 | AT88: VV | AU88: 2 | AV88: 4 | AW88: -1 | AX88: 1 | AY88: ROZPOCET
C89: 5 | D89: K | E89: 171101101 | F89: Uložení sypaniny z hornin soudržných do násypů zhutněných na 95 % PS | J89: m3 | K89: 3.1 | L89: 40 | N89: =ROUND($L$89*$K$89,2) -> 124 | R89: CS ÚRS 2013 01 | U89: základní | X89: 0 | Y89: =$X$89*$K$89 -> 0 | Z89: 0 | AA89: =$Z$89*$K$89 -> 0 | AR89: 4 | AT89: K | AU89: 2 | AY89: ROZPOCET | BE89: =IF($U$89="základní",$N$89,0) -> 124 | BF89: =IF($U$89="snížená",$N$89,0) -> 0 | BG89: =IF($U$89="zákl. přenesená",$N$89,0) -> 0 | BH89: =IF($U$89="sníž. přenesená",$N$89,0) -> 0 | BI89: =IF($U$89="nulová",$N$89,0) -> 0 | BJ89: 1 | BK89: =ROUND($L$89*$K$89,2) -> 124 | BL89: 4 | BM89: -1503162200
F90: Uložení sypaniny do násypů s rozprostřením sypaniny ve vrstvách a s hrubým urovnáním zhutněných s uzavřením povrchu násypu z hornin soudržných s předepsanou mírou zhutnění v procentech výsledků zkoušek Proctor-Standard (dále jen PS) na 95 % PS | AT90: PP | AU90: 2
F91: "násyp"3,1 | K91: 3.1 | AT91: VV | AU91: 2 | AV91: 2 | AW91: -1 | AX91: 1 | AY91: ROZPOCET
C92: 6 | D92: K | E92: 122201101 | F92: Odkopávky a prokopávky nezapažené v hornině tř. 3 objem do 100 m3 | J92: m3 | K92: 0.15 | L92: 100 | N92: =ROUND($L$92*$K$92,2) -> 15 | R92: CS ÚRS 2013 01 | U92: základní | X92: 0 | Y92: =$X$92*$K$92 -> 0 | Z92: 0 | AA92: =$Z$92*$K$92 -> 0 | AR92: 4 | AT92: K | AU92: 2 | AY92: ROZPOCET | BE92: =IF($U$92="základní",$N$92,0) -> 15 | BF92: =IF($U$92="snížená",$N$92,0) -> 0 | BG92: =IF($U$92="zákl. přenesená",$N$92,0) -> 0 | BH92: =IF($U$92="sníž. přenesená",$N$92,0) -> 0 | BI92: =IF($U$92="nulová",$N$92,0) -> 0 | BJ92: 1 | BK92: =ROUND($L$92*$K$92,2) -> 15 | BL92: 4 | BM92: 63651652
F93: Odkopávky a prokopávky nezapažené s přehozením výkopku na vzdálenost do 3 m nebo s naložením na dopravní prostředek v hornině tř. 3 do 100 m3 | AT93: PP | AU93: 2
F94: " výkop pro patky odp. košů" 0,15 | K94: 0.15 | AT94: VV | AU94: 2 | AV94: 2 | AW94: -1 | AX94: 1 | AY94: ROZPOCET
C95: 7 | D95: K | E95: 162701105 | F95: Vodorovné přemístění do 10000 m výkopku/sypaniny z horniny tř. 1 až 4 | J95: m3 | K95: 0.15 | L95: 150 | N95: =ROUND($L$95*$K$95,2) -> 22.5 | R95: CS ÚRS 2013 01 | U95: základní | X95: 0 | Y95: =$X$95*$K$95 -> 0 | Z95: 0 | AA95: =$Z$95*$K$95 -> 0 | AR95: 4 | AT95: K | AU95: 2 | AY95: ROZPOCET | BE95: =IF($U$95="základní",$N$95,0) -> 22.5 | BF95: =IF($U$95="snížená",$N$95,0) -> 0 | BG95: =IF($U$95="zákl. přenesená",$N$95,0) -> 0 | BH95: =IF($U$95="sníž. přenesená",$N$95,0) -> 0 | BI95: =IF($U$95="nulová",$N$95,0) -> 0 | BJ95: 1 | BK95: =ROUND($L$95*$K$95,2) -> 22.5 | BL95: 4 | BM95: 557657963
F96: Vodorovné přemístění do 10000 m výkopku/sypaniny z horniny tř. 1 až 4 | AT96: PP | AU96: 2
F97: "skládka ve vzdálenosti 23km" | AT97: VV | AU97: 2 | AV97: 1 | AW97: -1 | AX97: 0 | AY97: ROZPOCET
F98: " výkop pro patky odp. košů" 0,15 | K98: 0.15 | AT98: VV | AU98: 2 | AV98: 2 | AW98: -1 | AX98: 0 | AY98: ROZPOCET
F99: Součet | K99: 0.15 | AT99: VV | AU99: 2 | AV99: 4 | AW99: -1 | AX99: 1 | AY99: ROZPOCET
C100: 8 | D100: K | E100: 162701109 | F100: Příplatek k vodorovnému přemístění výkopku/sypaniny z horniny tř. 1 až 4 ZKD 1000 m přes 10000 m | J100: m3 | K100: 1.95 | L100: 8 | N100: =ROUND($L$100*$K$100,2) -> 15.6 | R100: CS ÚRS 2013 01 | U100: základní | X100: 0 | Y100: =$X$100*$K$100 -> 0 | Z100: 0 | AA100: =$Z$100*$K$100 -> 0 | AR100: 4 | AT100: K | AU100: 2 | AY100: ROZPOCET | BE100: =IF($U$100="základní",$N$100,0) -> 15.6 | BF100: =IF($U$100="snížená",$N$100,0) -> 0 | BG100: =IF($U$100="zákl. přenesená",$N$100,0) -> 0 | BH100: =IF($U$100="sníž. přenesená",$N$100,0) -> 0 | BI100: =IF($U$100="nulová",$N$100,0) -> 0 | BJ100: 1 | BK100: =ROUND($L$100*$K$100,2) -> 15.6 | BL100: 4 | BM100: -1082639765
F101: Příplatek k vodorovnému přemístění výkopku/sypaniny z horniny tř. 1 až 4 ZKD 1000 m přes 10000 m | AT101: PP | AU101: 2
F102: "13 km navíc" | AT102: VV | AU102: 2 | AV102: 1 | AW102: -1 | AX102: 0 | AY102: ROZPOCET
F103: " výkop pro patky odp. košů" 0,15 | K103: 0.15 | AT103: VV | AU103: 2 | AV103: 2 | AW103: -1 | AX103: 0 | AY103: ROZPOCET
F104: Součet | K104: 0.15 | AT104: VV | AU104: 2 | AV104: 4 | AW104: -1 | AX104: 1 | AY104: ROZPOCET
F105: 0,15*13 'Přepočtené koeficientem množství | K105: 1.95 | AT105: VV | AU105: 2 | AV105: 2 | AW105: 0 | AX105: 1 | AY105: ROZPOCET
C106: 9 | D106: K | E106: 171201201 | F106: Uložení sypaniny na skládky | J106: m3 | K106: 0.15 | L106: 10 | N106: =ROUND($L$106*$K$106,2) -> 1.5 | U106: základní | X106: 0 | Y106: =$X$106*$K$106 -> 0 | Z106: 0 | AA106: =$Z$106*$K$106 -> 0 | AR106: 4 | AT106: K | AU106: 2 | AY106: ROZPOCET | BE106: =IF($U$106="základní",$N$106,0) -> 1.5 | BF106: =IF($U$106="snížená",$N$106,0) -> 0 | BG106: =IF($U$106="zákl. přenesená",$N$106,0) -> 0 | BH106: =IF($U$106="sníž. přenesená",$N$106,0) -> 0 | BI106: =IF($U$106="nulová",$N$106,0) -> 0 | BJ106: 1 | BK106: =ROUND($L$106*$K$106,2) -> 1.5 | BL106: 4 | BM106: 1586894198
F107: Uložení sypaniny na skládky | AT107: PP | AU107: 2
F108: "výkop základy odp. košů"0,15 | K108: 0.15 | AT108: VV | AU108: 2 | AV108: 2 | AW108: -1 | AX108: 1 | AY108: ROZPOCET
C109: 10 | D109: K | E109: 171201211 | F109: Poplatek za uložení odpadu ze sypaniny na skládce (skládkovné) | J109: t | K109: 0.3 | L109: 100 | N109: =ROUND($L$109*$K$109,2) -> 30 | R109: CS ÚRS 2013 01 | U109: základní | X109: 0 | Y109: =$X$109*$K$109 -> 0 | Z109: 0 | AA109: =$Z$109*$K$109 -> 0 | AR109: 4 | AT109: K | AU109: 2 | AY109: ROZPOCET | BE109: =IF($U$109="základní",$N$109,0) -> 30 | BF109: =IF($U$109="snížená",$N$109,0) -> 0 | BG109: =IF($U$109="zákl. přenesená",$N$109,0) -> 0 | BH109: =IF($U$109="sníž. přenesená",$N$109,0) -> 0 | BI109: =IF($U$109="nulová",$N$109,0) -> 0 | BJ109: 1 | BK109: =ROUND($L$109*$K$109,2) -> 30 | BL109: 4 | BM109: -243430253
F110: Uložení sypaniny poplatek za uložení sypaniny na skládce ( skládkovné ) | AT110: PP | AU110: 2
F111: 0,15*2 | K111: 0.3 | AT111: VV | AU111: 2 | AV111: 2 | AW111: -1 | AX111: 1 | AY111: ROZPOCET
C112: 11 | D112: K | E112: 181301101 | F112: Rozprostření ornice tl vrstvy do 100 mm pl do 500 m2 v rovině nebo ve svahu do 1:5 | J112: m2 | K112: 3.4 | L112: 29 | N112: =ROUND($L$112*$K$112,2) -> 98.6 | R112: CS ÚRS 2013 01 | U112: základní | X112: 0 | Y112: =$X$112*$K$112 -> 0 | Z112: 0 | AA112: =$Z$112*$K$112 -> 0 | AR112: 4 | AT112: K | AU112: 2 | AY112: ROZPOCET | BE112: =IF($U$112="základní",$N$112,0) -> 98.6 | BF112: =IF($U$112="snížená",$N$112,0) -> 0 | BG112: =IF($U$112="zákl. přenesená",$N$112,0) -> 0 | BH112: =IF($U$112="sníž. přenesená",$N$112,0) -> 0 | BI112: =IF($U$112="nulová",$N$112,0) -> 0 | BJ112: 1 | BK112: =ROUND($L$112*$K$112,2) -> 98.6 | BL112: 4 | BM112: -369425877
F113: Rozprostření a urovnání ornice v rovině nebo ve svahu sklonu do 1 : 5 při souvislé ploše do 500 m2, tl. vrstvy do 100 mm | AT113: PP | AU113: 2
F114: "ohumusování tl. 0,1mm"3,4 | K114: 3.4 | AT114: VV | AU114: 2 | AV114: 2 | AW114: -1 | AX114: 1 | AY114: ROZPOCET
C115: 12 | D115: K | E115: 181411131 | F115: Založení parkového trávníku výsevem plochy do 1000 m2 v rovině a ve svahu do 1:5 | J115: m2 | K115: 3.4 | L115: 10 | N115: =ROUND($L$115*$K$115,2) -> 34 | R115: CS ÚRS 2013 01 | U115: základní | X115: 0 | Y115: =$X$115*$K$115 -> 0 | Z115: 0 | AA115: =$Z$115*$K$115 -> 0 | AR115: 4 | AT115: K | AU115: 2 | AY115: ROZPOCET | BE115: =IF($U$115="základní",$N$115,0) -> 34 | BF115: =IF($U$115="snížená",$N$115,0) -> 0 | BG115: =IF($U$115="zákl. přenesená",$N$115,0) -> 0 | BH115: =IF($U$115="sníž. přenesená",$N$115,0) -> 0 | BI115: =IF($U$115="nulová",$N$115,0) -> 0 | BJ115: 1 | BK115: =ROUND($L$115*$K$115,2) -> 34 | BL115: 4 | BM115: -738993121
F116: Založení trávníku na půdě předem připravené plochy do 1000 m2 výsevem včetně utažení parkového v rovině nebo na svahu do 1:5 | AT116: PP | AU116: 2
C117: 13 | D117: M | E117: 005724100 | F117: osivo směs travní parková | J117: kg | K117: 0.085 | L117: 95 | N117: =ROUND($L$117*$K$117,2) -> 8.08 | R117: CS ÚRS 2013 01 | U117: základní | X117: 0.001 | Y117: =$X$117*$K$117 -> 8.5e-05 | Z117: 0 | AA117: =$Z$117*$K$117 -> 0 | AR117: 8 | AT117: M | AU117: 2 | AY117: ROZPOCET | BE117: =IF($U$117="základní",$N$117,0) -> 8.08 | BF117: =IF($U$117="snížená",$N$117,0) -> 0 | BG117: =IF($U$117="zákl. přenesená",$N$117,0) -> 0 | BH117: =IF($U$117="sníž. přenesená",$N$117,0) -> 0 | BI117: =IF($U$117="nulová",$N$117,0) -> 0 | BJ117: 1 | BK117: =ROUND($L$117*$K$117,2) -> 8.08 | BL117: 4 | BM117: -582683946
F118: osiva pícnin směsi travní balení obvykle 25 kg parková | AT118: PP | AU118: 2
F119: 3,4*0,025 'Přepočtené koeficientem množství | K119: 0.085 | AT119: VV | AU119: 2 | AV119: 2 | AW119: 0 | AX119: 1 | AY119: ROZPOCET
D120: 2 - Zakládání | N120: =$BK$120 -> 346.68 | W120: =SUM($W$121:$W$123) -> 0 | Y120: =SUM($Y$121:$Y$123) -> 0.27559224 | AA120: =SUM($AA$121:$AA$123) -> 0 | AR120: 1 | AT120: D | AU120: 1 | AY120: ROZPOCET | BK120: =SUM($BK$121:$BK$123) -> 346.68
C121: 14 | D121: K | E121: 275316231 | F121: Základové pátky z prostého betonu pro prostředí s mrazovými cykly C 25/30 XF3 | J121: m3 | K121: 0.108 | L121: 3210 | N121: =ROUND($L$121*$K$121,2) -> 346.68 | R121: CS ÚRS 2013 01 | U121: základní | X121: 2.55178 | Y121: =$X$121*$K$121 -> 0.27559224 | Z121: 0 | AA121: =$Z$121*$K$121 -> 0 | AR121: 4 | AT121: K | AU121: 2 | AY121: ROZPOCET | BE121: =IF($U$121="základní",$N$121,0) -> 346.68 | BF121: =IF($U$121="snížená",$N$121,0) -> 0 | BG121: =IF($U$121="zákl. přenesená",$N$121,0) -> 0 | BH121: =IF($U$121="sníž. přenesená",$N$121,0) -> 0 | BI121: =IF($U$121="nulová",$N$121,0) -> 0 | BJ121: 1 | BK121: =ROUND($L$121*$K$121,2) -> 346.68 | BL121: 4 | BM121: -244671503
F122: Základy z betonu prostého patky z betonu pro prostředí s mrazovými cykly C 25/30 XF3 | AT122: PP | AU122: 2
F123: "patky k odpadkovým košům" 2*(0,3*0,3*0,6) | K123: 0.108 | AT123: VV | AU123: 2 | AV123: 2 | AW123: -1 | AX123: 1 | AY123: ROZPOCET
D124: 5 - Komunikace | N124: =$BK$124 -> 11612.5 | W124: =SUM($W$125:$W$138) -> 0 | Y124: =SUM($Y$125:$Y$138) -> 6.780375 | AA124: =SUM($AA$125:$AA$138) -> 0 | AR124: 1 | AT124: D | AU124: 1 | AY124: ROZPOCET | BK124: =SUM($BK$125:$BK$138) -> 11612.5
C125: 15 | D125: K | E125: 564851111 | F125: Podklad ze štěrkodrtě ŠD tl 150 mm | J125: m2 | K125: 31.5 | L125: 85 | N125: =ROUND($L$125*$K$125,2) -> 2677.5 | U125: základní | X125: 0 | Y125: =$X$125*$K$125 -> 0 | Z125: 0 | AA125: =$Z$125*$K$125 -> 0 | AR125: 4 | AT125: K | AU125: 2 | AY125: ROZPOCET | BE125: =IF($U$125="základní",$N$125,0) -> 2677.5 | BF125: =IF($U$125="snížená",$N$125,0) -> 0 | BG125: =IF($U$125="zákl. přenesená",$N$125,0) -> 0 | BH125: =IF($U$125="sníž. přenesená",$N$125,0) -> 0 | BI125: =IF($U$125="nulová",$N$125,0) -> 0 | BJ125: 1 | BK125: =ROUND($L$125*$K$125,2) -> 2677.5 | BL125: 4 | BM125: 1274944729
F126: Podklad ze štěrkodrtě ŠD tl 150 mm | AT126: PP | AU126: 2
F127: "podkladní vrstva dlažbou, (f 0-32)"27,5+4 | K127: 31.5 | AT127: VV | AU127: 2 | AV127: 2 | AW127: -1 | AX127: 1 | AY127: ROZPOCET
F128: Součet | K128: 31.5 | AT128: VV | AU128: 2 | AV128: 4 | AW128: -1 | AX128: 0 | AY128: ROZPOCET
C129: 16 | D129: K | E129: 596211110 | F129: Kladení zámkové dlažby komunikací pro pěší tl 60 mm skupiny A pl do 50 m2 | J129: m2 | K129: 31.5 | L129: 130 | N129: =ROUND($L$129*$K$129,2) -> 4095 | U129: základní | X129: 0.08425 | Y129: =$X$129*$K$129 -> 2.653875 | Z129: 0 | AA129: =$Z$129*$K$129 -> 0 | AR129: 4 | AT129: K | AU129: 2 | AY129: ROZPOCET | BE129: =IF($U$129="základní",$N$129,0) -> 4095 | BF129: =IF($U$129="snížená",$N$129,0) -> 0 | BG129: =IF($U$129="zákl. přenesená",$N$129,0) -> 0 | BH129: =IF($U$129="sníž. přenesená",$N$129,0) -> 0 | BI129: =IF($U$129="nulová",$N$129,0) -> 0 | BJ129: 1 | BK129: =ROUND($L$129*$K$129,2) -> 4095 | BL129: 4 | BM129: 110399757
F130: Kladení zámkové dlažby komunikací pro pěší tl 60 mm skupiny A pl do 50 m2 | AT130: PP | AU130: 2
F131: 27,5+4 | K131: 31.5 | AT131: VV | AU131: 2 | AV131: 2 | AW131: -1 | AX131: 0 | AY131: ROZPOCET
F132: Součet | K132: 31.5 | AT132: VV | AU132: 2 | AV132: 4 | AW132: -1 | AX132: 1 | AY132: ROZPOCET
C133: 17 | D133: M | E133: 592453080 | F133: dlažba 20 x 10 x 6 cm přírodní | J133: m2 | K133: 27.5 | L133: 120 | N133: =ROUND($L$133*$K$133,2) -> 3300 | U133: základní | X133: 0.131 | Y133: =$X$133*$K$133 -> 3.6025 | Z133: 0 | AA133: =$Z$133*$K$133 -> 0 | AR133: 8 | AT133: M | AU133: 2 | AY133: ROZPOCET | BE133: =IF($U$133="základní",$N$133,0) -> 3300 | BF133: =IF($U$133="snížená",$N$133,0) -> 0 | BG133: =IF($U$133="zákl. přenesená",$N$133,0) -> 0 | BH133: =IF($U$133="sníž. přenesená",$N$133,0) -> 0 | BI133: =IF($U$133="nulová",$N$133,0) -> 0 | BJ133: 1 | BK133: =ROUND($L$133*$K$133,2) -> 3300 | BL133: 4 | BM133: -1461583524
F134: "dlažba ŠEDÁ" 27,5 | K134: 27.5 | AT134: VV | AU134: 2 | AV134: 2 | AW134: -1 | AX134: 0 | AY134: ROZPOCET
F135: Součet | K135: 27.5 | AT135: VV | AU135: 2 | AV135: 4 | AW135: -1 | AX135: 1 | AY135: ROZPOCET
C136: 18 | D136: M | E136: 592452670 | F136: dlažba pro nevidomé 20 x 10 x 6 cm barevná | J136: m2 | K136: 4 | L136: 385 | N136: =ROUND($L$136*$K$136,2) -> 1540 | U136: základní | X136: 0.131 | Y136: =$X$136*$K$136 -> 0.524 | Z136: 0 | AA136: =$Z$136*$K$136 -> 0 | AR136: 8 | AT136: M | AU136: 2 | AY136: ROZPOCET | BE136: =IF($U$136="základní",$N$136,0) -> 1540 | BF136: =IF($U$136="snížená",$N$136,0) -> 0 | BG136: =IF($U$136="zákl. přenesená",$N$136,0) -> 0 | BH136: =IF($U$136="sníž. přenesená",$N$136,0) -> 0 | BI136: =IF($U$136="nulová",$N$136,0) -> 0 | BJ136: 1 | BK136: =ROUND($L$136*$K$136,2) -> 1540 | BL136: 4 | BM136: 1542167288
F137: "úprava pro nevidomé, barva červená"4 | K137: 4 | AT137: VV | AU137: 2 | AV137: 2 | AW137: -1 | AX137: 1 | AY137: ROZPOCET
F138: Součet | K138: 4 | AT138: VV | AU138: 2 | AV138: 4 | AW138: -1 | AX138: 0 | AY138: ROZPOCET
D139: 9 - Ostatní konstrukce a práce-bourání | N139: =$BK$139 -> 20514.78 | W139: =$W$140+SUM($W$141:$W$156) -> 0 | Y139: =$Y$140+SUM($Y$141:$Y$156) -> 20.48012 | AA139: =$AA$140+SUM($AA$141:$AA$156) -> 0.174 | AR139: 1 | AT139: D | AU139: 1 | AY139: ROZPOCET | BK139: =$BK$140+SUM($BK$141:$BK$156) -> 20514.78
C140: 19 | D140: K | E140: 916231213 | F140: Osazení chodníkového obrubníku betonového stojatého s boční opěrou do lože z betonu prostého | J140: m | K140: 10.7 | L140: 150 | N140: =ROUND($L$140*$K$140,2) -> 1605 | U140: základní | X140: 0.1295 | Y140: =$X$140*$K$140 -> 1.38565 | Z140: 0 | AA140: =$Z$140*$K$140 -> 0 | AR140: 4 | AT140: K | AU140: 2 | AY140: ROZPOCET | BE140: =IF($U$140="základní",$N$140,0) -> 1605 | BF140: =IF($U$140="snížená",$N$140,0) -> 0 | BG140: =IF($U$140="zákl. přenesená",$N$140,0) -> 0 | BH140: =IF($U$140="sníž. přenesená",$N$140,0) -> 0 | BI140: =IF($U$140="nulová",$N$140,0) -> 0 | BJ140: 1 | BK140: =ROUND($L$140*$K$140,2) -> 1605 | BL140: 4 | BM140: -514077254
F141: Osazení chodníkového obrubníku betonového stojatého s boční opěrou do lože z betonu prostého | AT141: PP | AU141: 2
C142: 20 | D142: M | E142: 592174110 | F142: obrubník betonový chodníkový 100x8x20 cm | J142: kus | K142: 10.7 | L142: 69 | N142: =ROUND($L$142*$K$142,2) -> 738.3 | R142: CS ÚRS 2013 01 | U142: základní | X142: 0.036 | Y142: =$X$142*$K$142 -> 0.3852 | Z142: 0 | AA142: =$Z$142*$K$142 -> 0 | AR142: 8 | AT142: M | AU142: 2 | AY142: ROZPOCET | BE142: =IF($U$142="základní",$N$142,0) -> 738.3 | BF142: =IF($U$142="snížená",$N$142,0) -> 0 | BG142: =IF($U$142="zákl. přenesená",$N$142,0) -> 0 | BH142: =IF($U$142="sníž. přenesená",$N$142,0) -> 0 | BI142: =IF($U$142="nulová",$N$142,0) -> 0 | BJ142: 1 | BK142: =ROUND($L$142*$K$142,2) -> 738.3 | BL142: 4 | BM142: 1076109856
F143: 3,7+4,1+2,9 | K143: 10.7 | AT143: VV | AU143: 2 | AV143: 2 | AW143: -1 | AX143: 1 | AY143: ROZPOCET
C144: 21 | D144: K | E144: 936104211 | F144: Montáž odpadkového koše do betonové patky | J144: kus | K144: 2 | L144: 160 | N144: =ROUND($L$144*$K$144,2) -> 320 | R144: CS ÚRS 2013 01 | U144: základní | X144: 0.07287 | Y144: =$X$144*$K$144 -> 0.14574 | Z144: 0 | AA144: =$Z$144*$K$144 -> 0 | AR144: 4 | AT144: K | AU144: 2 | AY144: ROZPOCET | BE144: =IF($U$144="základní",$N$144,0) -> 320 | BF144: =IF($U$144="snížená",$N$144,0) -> 0 | BG144: =IF($U$144="zákl. přenesená",$N$144,0) -> 0 | BH144: =IF($U$144="sníž. přenesená",$N$144,0) -> 0 | BI144: =IF($U$144="nulová",$N$144,0) -> 0 | BJ144: 1 | BK144: =ROUND($L$144*$K$144,2) -> 320 | BL144: 4 | BM144: 2080678773
F145: Montáž odpadkového koše do betonové patky | AT145: PP | AU145: 2
C146: 22 | D146: M | E146: 749101200 | F146: koš odpadkový plastový, výška 84 cm, průměr 35 cm, obsah 50 l | J146: kus | K146: 2 | L146: 3600 | N146: =ROUND($L$146*$K$146,2) -> 7200 | R146: CS ÚRS 2013 01 | U146: základní | X146: 0.006 | Y146: =$X$146*$K$146 -> 0.012 | Z146: 0 | AA146: =$Z$146*$K$146 -> 0 | AR146: 8 | AT146: M | AU146: 2 | AY146: ROZPOCET | BE146: =IF($U$146="základní",$N$146,0) -> 7200 | BF146: =IF($U$146="snížená",$N$146,0) -> 0 | BG146: =IF($U$146="zákl. přenesená",$N$146,0) -> 0 | BH146: =IF($U$146="sníž. přenesená",$N$146,0) -> 0 | BI146: =IF($U$146="nulová",$N$146,0) -> 0 | BJ146: 1 | BK146: =ROUND($L$146*$K$146,2) -> 7200 | BL146: 4 | BM146: 183489259
F147: koše odpadkové plastové výška 84 cm, průměr 35 cm, obsah 50 l | AT147: PP | AU147: 2
C148: 23 | D148: M | E148: 141208670 | F148: trubka ocelová bezešvá hladká kruhová 11353.1 D60,3 tl 3,2 mm | J148: m | K148: 3 | L148: 185 | N148: =ROUND($L$148*$K$148,2) -> 555 | R148: CS ÚRS 2013 01 | U148: základní | X148: 0.00451 | Y148: =$X$148*$K$148 -> 0.01353 | Z148: 0 | AA148: =$Z$148*$K$148 -> 0 | AR148: 8 | AT148: M | AU148: 2 | AY148: ROZPOCET | BE148: =IF($U$148="základní",$N$148,0) -> 555 | BF148: =IF($U$148="snížená",$N$148,0) -> 0 | BG148: =IF($U$148="zákl. přenesená",$N$148,0) -> 0 | BH148: =IF($U$148="sníž. přenesená",$N$148,0) -> 0 | BI148: =IF($U$148="nulová",$N$148,0) -> 0 | BJ148: 1 | BK148: =ROUND($L$148*$K$148,2) -> 555 | BL148: 4 | BM148: -118332600
F149: trubky ocelové bezešvé hladké kruhové běžné - nekotlové ČSN 41 1353.1 ve výrobních délkách, s vnějším i vnitřním povrchem okujeným, bez ochrany povrchu vnější D tloušťka stěny mm 60,3 3,2 | AT149: PP | AU149: 2
F150: Poznámka k položce: Hmotnost: 4,506 kg/m | AT150: P | AU150: 2
F151: "sloupky k odpadkovým košům"2*1,5 | K151: 3 | AT151: VV | AU151: 2 | AV151: 2 | AW151: -1 | AX151: 1 | AY151: ROZPOCET
C152: 24 | D152: K | E152: 966001311 | F152: Odstranění odpadkového koše s betonovou patkou | J152: kus | K152: 2 | L152: 100 | N152: =ROUND($L$152*$K$152,2) -> 200 | R152: CS ÚRS 2013 01 | U152: základní | X152: 0 | Y152: =$X$152*$K$152 -> 0 | Z152: 0.087 | AA152: =$Z$152*$K$152 -> 0.174 | AR152: 4 | AT152: K | AU152: 2 | AY152: ROZPOCET | BE152: =IF($U$152="základní",$N$152,0) -> 200 | BF152: =IF($U$152="snížená",$N$152,0) -> 0 | BG152: =IF($U$152="zákl. přenesená",$N$152,0) -> 0 | BH152: =IF($U$152="sníž. přenesená",$N$152,0) -> 0 | BI152: =IF($U$152="nulová",$N$152,0) -> 0 | BJ152: 1 | BK152: =ROUND($L$152*$K$152,2) -> 200 | BL152: 4 | BM152: -458122160
F153: Odstranění odpadkového koše s betonovou patkou | AT153: PP | AU153: 2
C154: 25 | D154: K | E154: 97909914R | F154: Poplatek za uložení odpadu z asfaltových povrchů na skládce (skládkovné) | J154: t | K154: 18.538 | L154: 120 | N154: =ROUND($L$154*$K$154,2) -> 2224.56 | U154: základní | X154: 1 | Y154: =$X$154*$K$154 -> 18.538 | Z154: 0 | AA154: =$Z$154*$K$154 -> 0 | AR154: 4 | AT154: K | AU154: 2 | AY154: ROZPOCET | BE154: =IF($U$154="základní",$N$154,0) -> 2224.56 | BF154: =IF($U$154="snížená",$N$154,0) -> 0 | BG154: =IF($U$154="zákl. přenesená",$N$154,0) -> 0 | BH154: =IF($U$154="sníž. přenesená",$N$154,0) -> 0 | BI154: =IF($U$154="nulová",$N$154,0) -> 0 | BJ154: 1 | BK154: =ROUND($L$154*$K$154,2) -> 2224.56 | BL154: 4 | BM154: -1411680604
F155: Poplatek za uložení odpadu z asfaltových povrchů na skládce (skládkovné) | AT155: PP | AU155: 2
D156: 99 - Přesun hmot | N156: =$BK$156 -> 7671.92 | W156: =SUM($W$157:$W$167) -> 0 | Y156: =SUM($Y$157:$Y$167) -> 0 | AA156: =SUM($AA$157:$AA$167) -> 0 | AR156: 1 | AT156: D | AU156: 2 | AY156: ROZPOCET | BK156: =SUM($BK$157:$BK$167) -> 7671.92
C157: 26 | D157: K | E157: 997006551 | F157: Hrubé urovnání suti na skládce bez zhutnění | J157: t | K157: 18.712 | L157: 25 | N157: =ROUND($L$157*$K$157,2) -> 467.8 | R157: CS ÚRS 2013 01 | U157: základní | X157: 0 | Y157: =$X$157*$K$157 -> 0 | Z157: 0 | AA157: =$Z$157*$K$157 -> 0 | AR157: 4 | AT157: K | AU157: 3 | AY157: ROZPOCET | BE157: =IF($U$157="základní",$N$157,0) -> 467.8 | BF157: =IF($U$157="snížená",$N$157,0) -> 0 | BG157: =IF($U$157="zákl. přenesená",$N$157,0) -> 0 | BH157: =IF($U$157="sníž. přenesená",$N$157,0) -> 0 | BI157: =IF($U$157="nulová",$N$157,0) -> 0 | BJ157: 1 | BK157: =ROUND($L$157*$K$157,2) -> 467.8 | BL157: 4 | BM157: 1094358332
F158: Hrubé urovnání suti na skládce bez zhutnění | AT158: PP | AU158: 3
C159: 27 | D159: K | E159: 997013501 | F159: Odvoz suti na skládku a vybouraných hmot nebo meziskládku do 1 km se složením | J159: t | K159: 18.712 | L159: 45 | N159: =ROUND($L$159*$K$159,2) -> 842.04 | U159: základní | X159: 0 | Y159: =$X$159*$K$159 -> 0 | Z159: 0 | AA159: =$Z$159*$K$159 -> 0 | AR159: 4 | AT159: K | AU159: 3 | AY159: ROZPOCET | BE159: =IF($U$159="základní",$N$159,0) -> 842.04 | BF159: =IF($U$159="snížená",$N$159,0) -> 0 | BG159: =IF($U$159="zákl. přenesená",$N$159,0) -> 0 | BH159: =IF($U$159="sníž. přenesená",$N$159,0) -> 0 | BI159: =IF($U$159="nulová",$N$159,0) -> 0 | BJ159: 1 | BK159: =ROUND($L$159*$K$159,2) -> 842.04 | BL159: 4 | BM159: -982358637
F160: Odvoz suti na skládku a vybouraných hmot nebo meziskládku do 1 km se složením | AT160: PP | AU160: 3
C161: 28 | D161: K | E161: 997013509 | F161: Příplatek k odvozu suti a vybouraných hmot na skládku ZKD 1 km přes 1 km | J161: t | K161: 411.664 | L161: 10 | N161: =ROUND($L$161*$K$161,2) -> 4116.64 | U161: základní | X161: 0 | Y161: =$X$161*$K$161 -> 0 | Z161: 0 | AA161: =$Z$161*$K$161 -> 0 | AR161: 4 | AT161: K | AU161: 3 | AY161: ROZPOCET | BE161: =IF($U$161="základní",$N$161,0) -> 4116.64 | BF161: =IF($U$161="snížená",$N$161,0) -> 0 | BG161: =IF($U$161="zákl. přenesená",$N$161,0) -> 0 | BH161: =IF($U$161="sníž. přenesená",$N$161,0) -> 0 | BI161: =IF($U$161="nulová",$N$161,0) -> 0 | BJ161: 1 | BK161: =ROUND($L$161*$K$161,2) -> 4116.64 | BL161: 4 | BM161: 63064904
F162: Příplatek k odvozu suti a vybouraných hmot na skládku ZKD 1 km přes 1 km | AT162: PP | AU162: 3
F163: 18,712*22 'Přepočtené koeficientem množství | K163: 411.664 | AT163: VV | AU163: 3 | AV163: 2 | AW163: 0 | AX163: 1 | AY163: ROZPOCET
C164: 29 | D164: K | E164: 997013801 | F164: Poplatek za uložení stavebního betonového odpadu na skládce (skládkovné) | J164: t | K164: 18.712 | L164: 100 | N164: =ROUND($L$164*$K$164,2) -> 1871.2 | R164: CS ÚRS 2013 01 | U164: základní | X164: 0 | Y164: =$X$164*$K$164 -> 0 | Z164: 0 | AA164: =$Z$164*$K$164 -> 0 | AR164: 4 | AT164: K | AU164: 3 | AY164: ROZPOCET | BE164: =IF($U$164="základní",$N$164,0) -> 1871.2 | BF164: =IF($U$164="snížená",$N$164,0) -> 0 | BG164: =IF($U$164="zákl. přenesená",$N$164,0) -> 0 | BH164: =IF($U$164="sníž. přenesená",$N$164,0) -> 0 | BI164: =IF($U$164="nulová",$N$164,0) -> 0 | BJ164: 1 | BK164: =ROUND($L$164*$K$164,2) -> 1871.2 | BL164: 4 | BM164: 106241562
F165: Poplatek za uložení stavebního odpadu na skládce (skládkovné) betonového | AT165: PP | AU165: 3
C166: 30 | D166: K | E166: 998225111 | F166: Přesun hmot pro pozemní komunikace s krytem z kamene, monolitickým betonovým nebo živičným | J166: t | K166: 18.712 | L166: 20 | N166: =ROUND($L$166*$K$166,2) -> 374.24 | R166: CS ÚRS 2013 01 | U166: základní | X166: 0 | Y166: =$X$166*$K$166 -> 0 | Z166: 0 | AA166: =$Z$166*$K$166 -> 0 | AR166: 4 | AT166: K | AU166: 3 | AY166: ROZPOCET | BE166: =IF($U$166="základní",$N$166,0) -> 374.24 | BF166: =IF($U$166="snížená",$N$166,0) -> 0 | BG166: =IF($U$166="zákl. přenesená",$N$166,0) -> 0 | BH166: =IF($U$166="sníž. přenesená",$N$166,0) -> 0 | BI166: =IF($U$166="nulová",$N$166,0) -> 0 | BJ166: 1 | BK166: =ROUND($L$166*$K$166,2) -> 374.24 | BL166: 4 | BM166: -1406498451
F167: Přesun hmot pro komunikace s krytem z kameniva, monolitickým betonovým nebo živičným dopravní vzdálenost do 200 m jakékoliv délky objektu | AT167: PP | AU167: 3

Sheet 002 - SPOJOVACÍ CHODNÍK
D1: List obsahuje: | F1: 1) Krycí list soupisu | H1: 2) Rekapitulace | L1: 3) Soupis prací | O1: Zpět na list: | S1: Rekapitulace stavby
C2: optimalizováno pro tisk sestav ve formátu A4 - na výšku | S2: >> skryté sloupce << | AT2: {0D8A28A8-66F5-4983-967B-C2067DEE49F7}
AT3: 2
C4: KRYCÍ LIST SOUPISU | T4: v --- níže se nacházejí doplnkové a pomocné údaje k sestavám --- v | AT4: False
D6: Stavba: | F6: ='Rekapitulace stavby'!$K$6 -> 120271 - OPRAVY CHODNÍKŮ
D7: Objekt: | F7: 002 - SPOJOVACÍ CHODNÍK
D9: KSO: | F9: 822 29
D10: Místo: | M10: Datum: | O10: ='Rekapitulace stavby'!$AN$8 -> 09.04.2014
D12: Zadavatel: | M12: IČ: | O12: =IF('Rekapitulace stavby'!$AN$10="","",'Rekapitulace stavby'!$AN$10) -> 
E13: =IF('Rekapitulace stavby'!$E$11="","",'Rekapitulace stavby'!$E$11) ->  | M13: DIČ: | O13: =IF('Rekapitulace stavby'!$AN$11="","",'Rekapitulace stavby'!$AN$11) -> 
D15: Uchazeč: | M15: IČ: | O15: =IF('Rekapitulace stavby'!$AN$13="","",'Rekapitulace stavby'!$AN$13) -> Vyplň údaj
E16: =IF('Rekapitulace stavby'!$E$14="","",'Rekapitulace stavby'!$E$14) -> Vyplň údaj | M16: DIČ: | O16: =IF('Rekapitulace stavby'!$AN$14="","",'Rekapitulace stavby'!$AN$14) -> Vyplň údaj
D18: Projektant: | M18: IČ: | O18: =IF('Rekapitulace stavby'!$AN$16="","",'Rekapitulace stavby'!$AN$16) -> 
E19: =IF('Rekapitulace stavby'!$E$17="","",'Rekapitulace stavby'!$E$17) ->  | M19: DIČ: | O19: =IF('Rekapitulace stavby'!$AN$17="","",'Rekapitulace stavby'!$AN$17) -> 
D21: Poznámka:
D25: Cena bez DPH | M25: =ROUNDUP($N$76,2) -> 68859.83
D27: DPH | E27: základní | F27: 0.21 | G27: ze | H27: =SUM($BE$76:$BE$135) -> 68859.83 | M27: =SUM($BE$76:$BE$135)*$F$27 -> 14460.5643
E28: snížená | F28: 0.15 | G28: ze | H28: =SUM($BF$76:$BF$135) -> 0 | M28: =SUM($BF$76:$BF$135)*$F$28 -> 0
E29: zákl. přenesená | F29: 0.21 | G29: ze | H29: =SUM($BG$76:$BG$135) -> 0 | M29: 0
E30: sníž. přenesená | F30: 0.15 | G30: ze | H30: =SUM($BH$76:$BH$135) -> 0 | M30: 0
E31: nulová | F31: 0 | G31: ze | H31: =SUM($BI$76:$BI$135) -> 0 | M31: 0
D33: Cena s DPH | G33: v | H33: CZK | L33: =ROUNDUP(SUM($M$25:$M$31),2) -> 83320.4
C39: REKAPITULACE ČLENĚNÍ SOUPISU PRACÍ
C41: Stavba: | F41: =$F$6 -> 120271 - OPRAVY CHODNÍKŮ
C42: Objekt: | F42: =$F$7 -> 002 - SPOJOVACÍ CHODNÍK
C44: Místo: | F44: =$F$10 ->  | K44: Datum: | M44: =IF($O$10="","",$O$10) -> 09.04.2014
C46: Zadavatel: | F46: =$E$13 ->  | K46: Projektant: | M46: =$E$19 -> 
C47: Uchazeč: | F47: =IF($E$16="","",$E$16) -> Vyplň údaj
C49: Kód dílu - Popis | N49: Cena celkem [CZK]
C51: Náklady soupisu celkem | N51: =ROUNDUP($N$76,2) -> 68859.83 | AU51: -1
D52: HSV - Práce a dodávky HSV | N52: =ROUNDUP($N$77,2) -> 68859.83
D53: 1 - Zemní práce | N53: =ROUNDUP($N$78,2) -> 9699
D54: 3 - Svislé a kompletní konstrukce | N54: =ROUNDUP($N$94,2) -> 3108.3
D55: 5 - Komunikace | N55: =ROUNDUP($N$97,2) -> 20886.05
D56: 8 - Trubní vedení | N56: =ROUNDUP($N$114,2) -> 1100
D57: 9 - Ostatní konstrukce a práce-bourání | N57: =ROUNDUP($N$117,2) -> 34066.48
D58: 99 - Přesun hmot | N58: =ROUNDUP($N$124,2) -> 16181.78
C65: SOUPIS PRACÍ
C67: Stavba: | F67: =$F$6 -> 120271 - OPRAVY CHODNÍKŮ
C68: Objekt: | F68: =$F$7 -> 002 - SPOJOVACÍ CHODNÍK
C70: Místo: | F70: =$F$10 ->  | K70: Datum: | M70: =IF($O$10="","",$O$10) -> 09.04.2014
C72: Zadavatel: | F72: =$E$13 ->  | K72: Projektant: | M72: =$E$19 -> 
C73: Uchazeč: | F73: =IF($E$16="","",$E$16) -> Vyplň údaj
C75: PČ | D75: Typ | E75: Kód | F75: Popis | J75: MJ | K75: Množství | L75: J.cena [CZK] | N75: Cena celkem [CZK] | R75: Cenová soustava | T75: Poznámka | U75: DPH | V75: J. Nh [h] | W75: Nh celkem [h] | X75: J. hmotnost [t] | Y75: Hmotnost celkem [t] | Z75: J. suť [t] | AA75: Suť Celkem [t]
C76: Náklady soupisu celkem | N76: =$BK$76 -> 68859.83 | W76: =$W$77 -> 0 | Y76: =$Y$77 -> 42.2775995 | AA76: =$AA$77 -> 39.955 | AT76: D | AU76: -1 | BK76: =$BK$77 -> 68859.83
D77: HSV - Práce a dodávky HSV | N77: =$BK$77 -> 68859.83 | W77: =$W$78+$W$94+$W$97+$W$114+$W$117 -> 0 | Y77: =$Y$78+$Y$94+$Y$97+$Y$114+$Y$117 -> 42.2775995 | AA77: =$AA$78+$AA$94+$AA$97+$AA$114+$AA$117 -> 39.955 | AR77: 1 | AT77: D | AU77: 0 | AY77: ROZPOCET | BK77: =$BK$78+$BK$94+$BK$97+$BK$114+$BK$117 -> 68859.83
D78: 1 - Zemní práce | N78: =$BK$78 -> 9699 | W78: =SUM($W$79:$W$93) -> 0 | Y78: =SUM($Y$79:$Y$93) -> 12.2 | AA78: =SUM($AA$79:$AA$93) -> 39.955 | AR78: 1 | AT78: D | AU78: 1 | AY78: ROZPOCET | BK78: =SUM($BK$79:$BK$93) -> 9699
C79: 1 | D79: K | E79: 113106121 | F79: Rozebrání dlažeb nebo dílců komunikací pro pěší z betonových nebo kamenných dlaždic | J79: m2 | K79: 61 | L79: 15 | N79: =ROUND($L$79*$K$79,2) -> 915 | U79: základní | X79: 0 | Y79: =$X$79*$K$79 -> 0 | Z79: 0.255 | AA79: =$Z$79*$K$79 -> 15.555 | AR79: 4 | AT79: K | AU79: 2 | AY79: ROZPOCET | BE79: =IF($U$79="základní",$N$79,0) -> 915 | BF79: =IF($U$79="snížená",$N$79,0) -> 0 | BG79: =IF($U$79="zákl. přenesená",$N$79,0) -> 0 | BH79: =IF($U$79="sníž. přenesená",$N$79,0) -> 0 | BI79: =IF($U$79="nulová",$N$79,0) -> 0 | BJ79: 1 | BK79: =ROUND($L$79*$K$79,2) -> 915 | BL79: 4 | BM79: 608451916
F80: Rozebrání dlažeb nebo dílců komunikací pro pěší z betonových nebo kamenných dlaždic | AT80: PP | AU80: 2
F81: "odstranění dlaždic chodníků "61 | K81: 61 | AT81: VV | AU81: 2 | AV81: 2 | AW81: -1 | AX81: 1 | AY81: ROZPOCET
C82: 2 | D82: K | E82: 113107123 | F82: Odstranění podkladu pl do 50 m2 z kameniva drceného tl 300 mm | J82: m2 | K82: 61 | L82: 75 | N82: =ROUND($L$82*$K$82,2) -> 4575 | R82: CS ÚRS 2013 01 | U82: základní | X82: 0 | Y82: =$X$82*$K$82 -> 0 | Z82: 0.4 | AA82: =$Z$82*$K$82 -> 24.4 | AR82: 4 | AT82: K | AU82: 2 | AY82: ROZPOCET | BE82: =IF($U$82="základní",$N$82,0) -> 4575 | BF82: =IF($U$82="snížená",$N$82,0) -> 0 | BG82: =IF($U$82="zákl. přenesená",$N$82,0) -> 0 | BH82: =IF($U$82="sníž. přenesená",$N$82,0) -> 0 | BI82: =IF($U$82="nulová",$N$82,0) -> 0 | BJ82: 1 | BK82: =ROUND($L$82*$K$82,2) -> 4575 | BL82: 4 | BM82: -1648613092
F83: Odstranění podkladů nebo krytů s přemístěním hmot na skládku na vzdálenost do 3 m nebo s naložením na dopravní prostředek v ploše jednotlivě do 50 m2 z kameniva hrubého drceného, o tl. vrstvy přes 200 do 300 mm | AT83: PP | AU83: 2
C84: 3 | D84: K | E84: 122201401 | F84: Vykopávky v zemníku na suchu v hornině tř. 3 objem do 100 m3 | J84: m3 | K84: 6.1 | L84: 100 | N84: =ROUND($L$84*$K$84,2) -> 610 | R84: CS ÚRS 2013 01 | U84: základní | X84: 0 | Y84: =$X$84*$K$84 -> 0 | Z84: 0 | AA84: =$Z$84*$K$84 -> 0 | AR84: 4 | AT84: K | AU84: 2 | AY84: ROZPOCET | BE84: =IF($U$84="základní",$N$84,0) -> 610 | BF84: =IF($U$84="snížená",$N$84,0) -> 0 | BG84: =IF($U$84="zákl. přenesená",$N$84,0) -> 0 | BH84: =IF($U$84="sníž. přenesená",$N$84,0) -> 0 | BI84: =IF($U$84="nulová",$N$84,0) -> 0 | BJ84: 1 | BK84: =ROUND($L$84*$K$84,2) -> 610 | BL84: 4 | BM84: -1188057645
F85: Vykopávky v zemníku na suchu v hornině tř. 3 objem do 100 m3 | AT85: PP | AU85: 2
F86: "materiál na zásyp"6,1 | K86: 6.1 | AT86: VV | AU86: 2 | AV86: 2 | AW86: -1 | AX86: 1 | AY86: ROZPOCET
C87: 4 | D87: M | E87: 583312000 | F87: materiál vhodný do násypu | J87: t | K87: 12.2 | L87: 275 | N87: =ROUND($L$87*$K$87,2) -> 3355 | R87: CS ÚRS 2013 01 | U87: základní | X87: 1 | Y87: =$X$87*$K$87 -> 12.2 | Z87: 0 | AA87: =$Z$87*$K$87 -> 0 | AR87: 8 | AT87: M | AU87: 2 | AY87: ROZPOCET | BE87: =IF($U$87="základní",$N$87,0) -> 3355 | BF87: =IF($U$87="snížená",$N$87,0) -> 0 | BG87: =IF($U$87="zákl. přenesená",$N$87,0) -> 0 | BH87: =IF($U$87="sníž. přenesená",$N$87,0) -> 0 | BI87: =IF($U$87="nulová",$N$87,0) -> 0 | BJ87: 1 | BK87: =ROUND($L$87*$K$87,2) -> 3355 | BL87: 4 | BM87: 1491695755
F88: materiál vhodný do násypu | AT88: PP | AU88: 2
F89: "materiál na zásyp"6,1*2 | K89: 12.2 | AT89: VV | AU89: 2 | AV89: 2 | AW89: -1 | AX89: 0 | AY89: ROZPOCET
F90: Součet | K90: 12.2 | AT90: VV | AU90: 2 | AV90: 4 | AW90: -1 | AX90: 1 | AY90: ROZPOCET
C91: 5 | D91: K | E91: 171101101 | F91: Uložení sypaniny z hornin soudržných do násypů zhutněných na 95 % PS | J91: m3 | K91: 6.1 | L91: 40 | N91: =ROUND($L$91*$K$91,2) -> 244 | R91: CS ÚRS 2013 01 | U91: základní | X91: 0 | Y91: =$X$91*$K$91 -> 0 | Z91: 0 | AA91: =$Z$91*$K$91 -> 0 | AR91: 4 | AT91: K | AU91: 2 | AY91: ROZPOCET | BE91: =IF($U$91="základní",$N$91,0) -> 244 | BF91: =IF($U$91="snížená",$N$91,0) -> 0 | BG91: =IF($U$91="zákl. přenesená",$N$91,0) -> 0 | BH91: =IF($U$91="sníž. přenesená",$N$91,0) -> 0 | BI91: =IF($U$91="nulová",$N$91,0) -> 0 | BJ91: 1 | BK91: =ROUND($L$91*$K$91,2) -> 244 | BL91: 4 | BM91: -942264114
F92: Uložení sypaniny z hornin soudržných do násypů zhutněných na 95 % PS | AT92: PP | AU92: 2
F93: "násyp"6,1 | K93: 6.1 | AT93: VV | AU93: 2 | AV93: 2 | AW93: -1 | AX93: 1 | AY93: ROZPOCET
D94: 3 - Svislé a kompletní konstrukce | N94: =$BK$94 -> 3108.3 | W94: =SUM($W$95:$W$96) -> 0 | Y94: =SUM($Y$95:$Y$96) -> 3.140977 | AA94: =SUM($AA$95:$AA$96) -> 0 | AR94: 1 | AT94: D | AU94: 1 | AY94: ROZPOCET | BK94: =SUM($BK$95:$BK$96) -> 3108.3
C95: 6 | D95: K | E95: 34827000R | F95: Oprava stáv. plot. podezdívek | J95: m2 | K95: 15.94 | L95: 195 | N95: =ROUND($L$95*$K$95,2) -> 3108.3 | U95: základní | X95: 0.19705 | Y95: =$X$95*$K$95 -> 3.140977 | Z95: 0 | AA95: =$Z$95*$K$95 -> 0 | AR95: 4 | AT95: K | AU95: 2 | AY95: ROZPOCET | BE95: =IF($U$95="základní",$N$95,0) -> 3108.3 | BF95: =IF($U$95="snížená",$N$95,0) -> 0 | BG95: =IF($U$95="zákl. přenesená",$N$95,0) -> 0 | BH95: =IF($U$95="sníž. přenesená",$N$95,0) -> 0 | BI95: =IF($U$95="nulová",$N$95,0) -> 0 | BJ95: 1 | BK95: =ROUND($L$95*$K$95,2) -> 3108.3 | BL95: 4 | BM95: 701691202
F96: "oprava stáv. plot. podezdívek, předpoklad 20% zcelk. délky"0,2*79,7 | K96: 15.94 | AT96: VV | AU96: 2 | AV96: 2 | AW96: -1 | AX96: 1 | AY96: ROZPOCET
D97: 5 - Komunikace | N97: =$BK$97 -> 20886.05 | W97: =SUM($W$98:$W$113) -> 0 | Y97: =SUM($Y$98:$Y$113) -> 13.0606725 | AA97: =SUM($AA$98:$AA$113) -> 0 | AR97: 1 | AT97: D | AU97: 1 | AY97: ROZPOCET | BK97: =SUM($BK$98:$BK$113) -> 20886.05
C98: 7 | D98: K | E98: 564851111 | F98: Podklad ze štěrkodrtě ŠD tl 150 mm | J98: m2 | K98: 60.65 | L98: 90 | N98: =ROUND($L$98*$K$98,2) -> 5458.5 | U98: základní | X98: 0 | Y98: =$X$98*$K$98 -> 0 | Z98: 0 | AA98: =$Z$98*$K$98 -> 0 | AR98: 4 | AT98: K | AU98: 2 | AY98: ROZPOCET | BE98: =IF($U$98="základní",$N$98,0) -> 5458.5 | BF98: =IF($U$98="snížená",$N$98,0) -> 0 | BG98: =IF($U$98="zákl. přenesená",$N$98,0) -> 0 | BH98: =IF($U$98="sníž. přenesená",$N$98,0) -> 0 | BI98: =IF($U$98="nulová",$N$98,0) -> 0 | BJ98: 1 | BK98: =ROUND($L$98*$K$98,2) -> 5458.5 | BL98: 4 | BM98: -572351779
F99: Podklad ze štěrkodrtě ŠD tl 150 mm | AT99: PP | AU99: 2
F100: "podkladní vrstva dlažbou, (f 0-32)"60+0,65 | K100: 60.65 | AT100: VV | AU100: 2 | AV100: 2 | AW100: -1 | AX100: 1 | AY100: ROZPOCET
F101: Součet | K101: 60.65 | AT101: VV | AU101: 2 | AV101: 4 | AW101: -1 | AX101: 0 | AY101: ROZPOCET
C102: 8 | D102: K | E102: 596211110 | F102: Kladení zámkové dlažby komunikací pro pěší tl 60 mm skupiny A pl do 50 m2 | J102: m2 | K102: 60.65 | L102: 130 | N102: =ROUND($L$102*$K$102,2) -> 7884.5 | U102: základní | X102: 0.08425 | Y102: =$X$102*$K$102 -> 5.1097625 | Z102: 0 | AA102: =$Z$102*$K$102 -> 0 | AR102: 4 | AT102: K | AU102: 2 | AY102: ROZPOCET | BE102: =IF($U$102="základní",$N$102,0) -> 7884.5 | BF102: =IF($U$102="snížená",$N$102,0) -> 0 | BG102: =IF($U$102="zákl. přenesená",$N$102,0) -> 0 | BH102: =IF($U$102="sníž. přenesená",$N$102,0) -> 0 | BI102: =IF($U$102="nulová",$N$102,0) -> 0 | BJ102: 1 | BK102: =ROUND($L$102*$K$102,2) -> 7884.5 | BL102: 4 | BM102: -965959677
F103: Kladení zámkové dlažby komunikací pro pěší tl 60 mm skupiny A pl do 50 m2 | AT103: PP | AU103: 2
F104: 60+0,65 | K104: 60.65 | AT104: VV | AU104: 2 | AV104: 2 | AW104: -1 | AX104: 1 | AY104: ROZPOCET
F105: Součet | K105: 60.65 | AT105: VV | AU105: 2 | AV105: 4 | AW105: -1 | AX105: 0 | AY105: ROZPOCET
C106: 9 | D106: M | E106: 592453080 | F106: dlažba 20 x 10 x 6 cm přírodní | J106: m2 | K106: 60 | L106: 120 | N106: =ROUND($L$106*$K$106,2) -> 7200 | U106: základní | X106: 0.131 | Y106: =$X$106*$K$106 -> 7.86 | Z106: 0 | AA106: =$Z$106*$K$106 -> 0 | AR106: 8 | AT106: M | AU106: 2 | AY106: ROZPOCET | BE106: =IF($U$106="základní",$N$106,0) -> 7200 | BF106: =IF($U$106="snížená",$N$106,0) -> 0 | BG106: =IF($U$106="zákl. přenesená",$N$106,0) -> 0 | BH106: =IF($U$106="sníž. přenesená",$N$106,0) -> 0 | BI106: =IF($U$106="nulová",$N$106,0) -> 0 | BJ106: 1 | BK106: =ROUND($L$106*$K$106,2) -> 7200 | BL106: 4 | BM106: -1491706968
F107: "dlažba ŠEDÁ" 60 | K107: 60 | AT107: VV | AU107: 2 | AV107: 2 | AW107: -1 | AX107: 1 | AY107: ROZPOCET
F108: Součet | K108: 60 | AT108: VV | AU108: 2 | AV108: 4 | AW108: -1 | AX108: 0 | AY108: ROZPOCET
C109: 10 | D109: M | E109: 592452670 | F109: dlažba pro nevidomé 20 x 10 x 6 cm barevná | J109: m2 | K109: 0.65 | L109: 385 | N109: =ROUND($L$109*$K$109,2) -> 250.25 | U109: základní | X109: 0.131 | Y109: =$X$109*$K$109 -> 0.08515 | Z109: 0 | AA109: =$Z$109*$K$109 -> 0 | AR109: 8 | AT109: M | AU109: 2 | AY109: ROZPOCET | BE109: =IF($U$109="základní",$N$109,0) -> 250.25 | BF109: =IF($U$109="snížená",$N$109,0) -> 0 | BG109: =IF($U$109="zákl. přenesená",$N$109,0) -> 0 | BH109: =IF($U$109="sníž. přenesená",$N$109,0) -> 0 | BI109: =IF($U$109="nulová",$N$109,0) -> 0 | BJ109: 1 | BK109: =ROUND($L$109*$K$109,2) -> 250.25 | BL109: 4 | BM109: -438099078
F110: "úprava pro nevidomé, barva červená"0,65 | K110: 0.65 | AT110: VV | AU110: 2 | AV110: 2 | AW110: -1 | AX110: 1 | AY110: ROZPOCET
F111: Součet | K111: 0.65 | AT111: VV | AU111: 2 | AV111: 4 | AW111: -1 | AX111: 0 | AY111: ROZPOCET
C112: 11 | D112: K | E112: 599141111 | F112: Vyplnění spár mezi silničními dílci živičnou zálivkou | J112: m | K112: 1.6 | L112: 58 | N112: =ROUND($L$112*$K$112,2) -> 92.8 | R112: CS ÚRS 2013 01 | U112: základní | X112: 0.0036 | Y112: =$X$112*$K$112 -> 0.00576 | Z112: 0 | AA112: =$Z$112*$K$112 -> 0 | AR112: 4 | AT112: K | AU112: 2 | AY112: ROZPOCET | BE112: =IF($U$112="základní",$N$112,0) -> 92.8 | BF112: =IF($U$112="snížená",$N$112,0) -> 0 | BG112: =IF($U$112="zákl. přenesená",$N$112,0) -> 0 | BH112: =IF($U$112="sníž. přenesená",$N$112,0) -> 0 | BI112: =IF($U$112="nulová",$N$112,0) -> 0 | BJ112: 1 | BK112: =ROUND($L$112*$K$112,2) -> 92.8 | BL112: 4 | BM112: -486924017
F113: Vyplnění spár mezi silničními dílci jakékoliv tloušťky živičnou zálivkou | AT113: PP | AU113: 2
D114: 8 - Trubní vedení | N114: =$BK$114 -> 1100 | W114: =SUM($W$115:$W$116) -> 0 | Y114: =SUM($Y$115:$Y$116) -> 0.4208 | AA114: =SUM($AA$115:$AA$116) -> 0 | AR114: 1 | AT114: D | AU114: 1 | AY114: ROZPOCET | BK114: =SUM($BK$115:$BK$116) -> 1100
C115: 12 | D115: K | E115: 899331111 | F115: Výšková úprava uličního vstupu nebo vpusti do 200 mm zvýšením poklopu | J115: kus | K115: 1 | L115: 1100 | N115: =ROUND($L$115*$K$115,2) -> 1100 | U115: základní | X115: 0.4208 | Y115: =$X$115*$K$115 -> 0.4208 | Z115: 0 | AA115: =$Z$115*$K$115 -> 0 | AR115: 4 | AT115: K | AU115: 2 | AY115: ROZPOCET | BE115: =IF($U$115="základní",$N$115,0) -> 1100 | BF115: =IF($U$115="snížená",$N$115,0) -> 0 | BG115: =IF($U$115="zákl. přenesená",$N$115,0) -> 0 | BH115: =IF($U$115="sníž. přenesená",$N$115,0) -> 0 | BI115: =IF($U$115="nulová",$N$115,0) -> 0 | BJ115: 1 | BK115: =ROUND($L$115*$K$115,2) -> 1100 | BL115: 4 | BM115: 1090452575
F116: Výšková úprava uličního vstupu nebo vpusti do 200 mm zvýšením poklopu | AT116: PP | AU116: 2
D117: 9 - Ostatní konstrukce a práce-bourání | N117: =$BK$117 -> 34066.48 | W117: =$W$118+SUM($W$119:$W$124) -> 0 | Y117: =$Y$118+SUM($Y$119:$Y$124) -> 13.45515 | AA117: =$AA$118+SUM($AA$119:$AA$124) -> 0 | AR117: 1 | AT117: D | AU117: 1 | AY117: ROZPOCET | BK117: =$BK$118+SUM($BK$119:$BK$124) -> 34066.48
C118: 13 | D118: K | E118: 916231213 | F118: Osazení chodníkového obrubníku betonového stojatého s boční opěrou do lože z betonu prostého | J118: m | K118: 81.3 | L118: 150 | N118: =ROUND($L$118*$K$118,2) -> 12195 | U118: základní | X118: 0.1295 | Y118: =$X$118*$K$118 -> 10.52835 | Z118: 0 | AA118: =$Z$118*$K$118 -> 0 | AR118: 4 | AT118: K | AU118: 2 | AY118: ROZPOCET | BE118: =IF($U$118="základní",$N$118,0) -> 12195 | BF118: =IF($U$118="snížená",$N$118,0) -> 0 | BG118: =IF($U$118="zákl. přenesená",$N$118,0) -> 0 | BH118: =IF($U$118="sníž. přenesená",$N$118,0) -> 0 | BI118: =IF($U$118="nulová",$N$118,0) -> 0 | BJ118: 1 | BK118: =ROUND($L$118*$K$118,2) -> 12195 | BL118: 4 | BM118: -1549451254
F119: Osazení chodníkového obrubníku betonového stojatého s boční opěrou do lože z betonu prostého | AT119: PP | AU119: 2
C120: 14 | D120: M | E120: 592174110 | F120: obrubník betonový chodníkový 100x8x20 cm | J120: kus | K120: 81.3 | L120: 69 | N120: =ROUND($L$120*$K$120,2) -> 5609.7 | R120: CS ÚRS 2013 01 | U120: základní | X120: 0.036 | Y120: =$X$120*$K$120 -> 2.9268 | Z120: 0 | AA120: =$Z$120*$K$120 -> 0 | AR120: 8 | AT120: M | AU120: 2 | AY120: ROZPOCET | BE120: =IF($U$120="základní",$N$120,0) -> 5609.7 | BF120: =IF($U$120="snížená",$N$120,0) -> 0 | BG120: =IF($U$120="zákl. přenesená",$N$120,0) -> 0 | BH120: =IF($U$120="sníž. přenesená",$N$120,0) -> 0 | BI120: =IF($U$120="nulová",$N$120,0) -> 0 | BJ120: 1 | BK120: =ROUND($L$120*$K$120,2) -> 5609.7 | BL120: 4 | BM120: -734551398
F121: 40+41,3 | K121: 81.3 | AT121: VV | AU121: 2 | AV121: 2 | AW121: -1 | AX121: 1 | AY121: ROZPOCET
C122: 15 | D122: K | E122: 919735112 | F122: Řezání stávajícího živičného krytu hl do 100 mm | J122: m | K122: 1.6 | L122: 50 | N122: =ROUND($L$122*$K$122,2) -> 80 | R122: CS ÚRS 2013 01 | U122: základní | X122: 0 | Y122: =$X$122*$K$122 -> 0 | Z122: 0 | AA122: =$Z$122*$K$122 -> 0 | AR122: 4 | AT122: K | AU122: 2 | AY122: ROZPOCET | BE122: =IF($U$122="základní",$N$122,0) -> 80 | BF122: =IF($U$122="snížená",$N$122,0) -> 0 | BG122: =IF($U$122="zákl. přenesená",$N$122,0) -> 0 | BH122: =IF($U$122="sníž. přenesená",$N$122,0) -> 0 | BI122: =IF($U$122="nulová",$N$122,0) -> 0 | BJ122: 1 | BK122: =ROUND($L$122*$K$122,2) -> 80 | BL122: 4 | BM122: 1817582590
F123: Řezání stávajícího živičného krytu nebo podkladu hloubky přes 50 do 100 mm | AT123: PP | AU123: 2
D124: 99 - Přesun hmot | N124: =$BK$124 -> 16181.78 | W124: =SUM($W$125:$W$135) -> 0 | Y124: =SUM($Y$125:$Y$135) -> 0 | AA124: =SUM($AA$125:$AA$135) -> 0 | AR124: 1 | AT124: D | AU124: 2 | AY124: ROZPOCET | BK124: =SUM($BK$125:$BK$135) -> 16181.78
C125: 16 | D125: K | E125: 997006551 | F125: Hrubé urovnání suti na skládce bez zhutnění | J125: t | K125: 39.955 | L125: 25 | N125: =ROUND($L$125*$K$125,2) -> 998.88 | R125: CS ÚRS 2013 01 | U125: základní | X125: 0 | Y125: =$X$125*$K$125 -> 0 | Z125: 0 | AA125: =$Z$125*$K$125 -> 0 | AR125: 4 | AT125: K | AU125: 3 | AY125: ROZPOCET | BE125: =IF($U$125="základní",$N$125,0) -> 998.88 | BF125: =IF($U$125="snížená",$N$125,0) -> 0 | BG125: =IF($U$125="zákl. přenesená",$N$125,0) -> 0 | BH125: =IF($U$125="sníž. přenesená",$N$125,0) -> 0 | BI125: =IF($U$125="nulová",$N$125,0) -> 0 | BJ125: 1 | BK125: =ROUND($L$125*$K$125,2) -> 998.88 | BL125: 4 | BM125: 812169031
F126: Hrubé urovnání suti na skládce bez zhutnění | AT126: PP | AU126: 3
C127: 17 | D127: K | E127: 997013501 | F127: Odvoz suti na skládku a vybouraných hmot nebo meziskládku do 1 km se složením | J127: t | K127: 39.955 | L127: 40 | N127: =ROUND($L$127*$K$127,2) -> 1598.2 | U127: základní | X127: 0 | Y127: =$X$127*$K$127 -> 0 | Z127: 0 | AA127: =$Z$127*$K$127 -> 0 | AR127: 4 | AT127: K | AU127: 3 | AY127: ROZPOCET | BE127: =IF($U$127="základní",$N$127,0) -> 1598.2 | BF127: =IF($U$127="snížená",$N$127,0) -> 0 | BG127: =IF($U$127="zákl. přenesená",$N$127,0) -> 0 | BH127: =IF($U$127="sníž. přenesená",$N$127,0) -> 0 | BI127: =IF($U$127="nulová",$N$127,0) -> 0 | BJ127: 1 | BK127: =ROUND($L$127*$K$127,2) -> 1598.2 | BL127: 4 | BM127: -266039702
F128: Odvoz suti na skládku a vybouraných hmot nebo meziskládku do 1 km se složením | AT128: PP | AU128: 3
C129: 18 | D129: K | E129: 997013509 | F129: Příplatek k odvozu suti a vybouraných hmot na skládku ZKD 1 km přes 1 km | J129: t | K129: 879.01 | L129: 10 | N129: =ROUND($L$129*$K$129,2) -> 8790.1 | U129: základní | X129: 0 | Y129: =$X$129*$K$129 -> 0 | Z129: 0 | AA129: =$Z$129*$K$129 -> 0 | AR129: 4 | AT129: K | AU129: 3 | AY129: ROZPOCET | BE129: =IF($U$129="základní",$N$129,0) -> 8790.1 | BF129: =IF($U$129="snížená",$N$129,0) -> 0 | BG129: =IF($U$129="zákl. přenesená",$N$129,0) -> 0 | BH129: =IF($U$129="sníž. přenesená",$N$129,0) -> 0 | BI129: =IF($U$129="nulová",$N$129,0) -> 0 | BJ129: 1 | BK129: =ROUND($L$129*$K$129,2) -> 8790.1 | BL129: 4 | BM129: -1221254706
F130: Příplatek k odvozu suti a vybouraných hmot na skládku ZKD 1 km přes 1 km | AT130: PP | AU130: 3
F131: 39,955*22 'Přepočtené koeficientem množství | K131: 879.01 | AT131: VV | AU131: 3 | AV131: 2 | AW131: 0 | AX131: 1 | AY131: ROZPOCET
C132: 19 | D132: K | E132: 997013801 | F132: Poplatek za uložení stavebního betonového odpadu na skládce (skládkovné) | J132: t | K132: 39.955 | L132: 100 | N132: =ROUND($L$132*$K$132,2) -> 3995.5 | R132: CS ÚRS 2013 01 | U132: základní | X132: 0 | Y132: =$X$132*$K$132 -> 0 | Z132: 0 | AA132: =$Z$132*$K$132 -> 0 | AR132: 4 | AT132: K | AU132: 3 | AY132: ROZPOCET | BE132: =IF($U$132="základní",$N$132,0) -> 3995.5 | BF132: =IF($U$132="snížená",$N$132,0) -> 0 | BG132: =IF($U$132="zákl. přenesená",$N$132,0) -> 0 | BH132: =IF($U$132="sníž. přenesená",$N$132,0) -> 0 | BI132: =IF($U$132="nulová",$N$132,0) -> 0 | BJ132: 1 | BK132: =ROUND($L$132*$K$132,2) -> 3995.5 | BL132: 4 | BM132: 724468361
F133: Poplatek za uložení stavebního betonového odpadu na skládce (skládkovné) | AT133: PP | AU133: 3
C134: 20 | D134: K | E134: 998223011 | F134: Přesun hmot pro pozemní komunikace s krytem dlážděným | J134: t | K134: 39.955 | L134: 20 | N134: =ROUND($L$134*$K$134,2) -> 799.1 | R134: CS ÚRS 2013 01 | U134: základní | X134: 0 | Y134: =$X$134*$K$134 -> 0 | Z134: 0 | AA134: =$Z$134*$K$134 -> 0 | AR134: 4 | AT134: K | AU134: 3 | AY134: ROZPOCET | BE134: =IF($U$134="základní",$N$134,0) -> 799.1 | BF134: =IF($U$134="snížená",$N$134,0) -> 0 | BG134: =IF($U$134="zákl. přenesená",$N$134,0) -> 0 | BH134: =IF($U$134="sníž. přenesená",$N$134,0) -> 0 | BI134: =IF($U$134="nulová",$N$134,0) -> 0 | BJ134: 1 | BK134: =ROUND($L$134*$K$134,2) -> 799.1 | BL134: 4 | BM134: 462520951
F135: Přesun hmot pro pozemní komunikace s krytem dlážděným dopravní vzdálenost do 200 m jakékoliv délky objektu | AT135: PP | AU135: 3

Sheet Pokyny pro vyplnění
C3: Struktura údajů, formát souboru a metodika pro zpracování
C4: Struktura
C6: Soubor je složen ze záložky Rekapitulace stavby a záložek s názvem soupisu prací pro jednotlivé objekty ve formátu XLS. Každá ze záložek přitom obsahuje
C7: ještě samostatné sestavy vymezené orámovaním a nadpisem sestavy. Všechny sestavy jsou optimalizovány i pro tisk na formát A4 na výšku.
C9: Rekapitulace stavby obsahuje sestavu Rekapitulace stavby a Rekapitulace objektů stavby a soupisů prací.
D10: V sestavě Rekapitulace stavby jsou uvedeny informace identifikující předmět veřejné zakázky na stavební práce s rekapitulací celkové nabídkové ceny
D11: uchazeče.
D13: V sestavě Rekapitulace objektů stavby a soupisů prací je uvedena rekapitulace stavebních objektů, inženýrských objektů, provozních souborů,
D14: vedlejších a ostatních nákladů a ostatních nákladů s rekapitulací nabídkové ceny za jednotlivé soupisy prací. Na základě údaje Typ je možné
D15: identifikovat, zda se jedná o objekt nebo soupis prací pro daný objekt:
E16: STA | F16: Stavební objekt pozemní
E17: ING | F17: Stavební objekt inženýrský
E18: PRO | F18: Provozní soubor
E19: VON | F19: Vedlejší a ostatní náklady
E20: OST | F20: Ostatní
E21: Soupis | F21: Soupis prací pro daný typ objektu
C23: Soupis prací pro jednotlivé objekty obsahuje sestavy Krycí list soupisu, Rekapitulace členění soupisu prací, Soupis prací. Za soupis prací může být považován
C24: i objekt stavby v případě, že neobsahuje podřízenou zakázku.
D25: Krycí list soupisu obsahuje rekapitulaci informací o předmětu veřejné zakázky ze sestavy Rekapitulace stavby, informaci o zařazení objektu do KSO
D26: a rekapitulaci celkové nabídkové ceny uchazeče za aktuální soupis prací.
D28: Rekapitulace členění soupisu prací obsahuje rekapitulaci soupisu prací ve všech úrovních členění soupisu tak, jak byla tato členění použita (např.
D29: stavební díly, funkční díly, případně jiné členění) s rekapitulací nabídkové ceny.
D31: Soupis prací obsahuje položky veškerých stavebních nebo montážních prací, dodávek materiálů a služeb nezbytných pro zhotovení stavebního objektu,
D32: inženýrského objektu, provozního souboru, vedlejších a ostatních nákladů.
D33: Pro položky soupisu prací se zobrazují následující informace:
E34: PČ | G34: Pořadové číslo položky v aktuálním soupisu
E35: TYP | G35: Typ položky: K - konstrukce, M - materiál
E36: Kód | G36: Kód položky
E37: Popis | G37: Zkrácený popis položky
E38: MJ | G38: Měrná jednotka položky
E39: Množství | G39: Množství v měrné jednotce
E40: J.cena | G40: Jednotková cena položky. Zadaní může obsahovat namísto J.ceny sloupce J.materiál a J.montáž, jejichž součet definuje
G41: J.cenu položky.
E42: Cena celkem | G42: Celková cena položky daná jako součin množství a j.ceny
E43: Cenová soustava | G43: Příslušnost položky do cenové soustavy
D45: Ke každé položce soupisu prací se na samostatných řádcích může zobrazovat:
E46: Plný popis položky
E47: Poznámka k souboru cen a poznámka zadavatele
E48: Výkaz výměr
D49: Pokud je k řádku výkazu výměr evidovaný údaj ve sloupci Kód, jedná se o definovaný odkaz, na který se může odvolávat výkaz výměr z jiné položky.
C50: Metodika pro zpracování
C52: Jednotlivé sestavy jsou v souboru provázány. Editovatelné pole jsou zvýrazněny žlutým podbarvením, ostatní pole neslouží k editaci a nesmí být jakkoliv
C53: modifikovány. Hodnoty jsou ve výpočtech zaokrouhlovány na počet desetinných míst viditelných v jednotlivých polích.
C55: Uchazeč je pro podání nabídky povinen vyplnit žlutě podbarvená pole:
D56: Pole Uchazeč v sestavě Rekapitulace stavby - zde uchazeč vyplní svůj název (název subjektu)
D57: Pole IČ a DIČ v sestavě Rekapitulace stavby - zde uchazeč vyplní svoje IČ a DIČ
D58: Datum v sestavě Rekapitulace stavby - zde uchazeč vyplní datum vytvoření nabídky
D59: J.cena = jednotková cena v sestavě Soupis prací o maximálním počtu desetinných míst uvedených v poli
D60: - pokud sestavy soupisů prací obsahují pole J.cena, musí být všechna tato pole vyplněna nenulovými kladnými číslicemi
D61: Poznámka - nepovinný údaj pro položku soupisu
D63: V případě, že sestavy soupisů prací neobsahují pole J.cena, potom ve všech soupisech prací obsahují pole:
D64: - J.materiál - jednotková cena materiálu
D65: - J.montáž - jednotková cena montáže
D66: Uchazeč je v tomto případě povinen vyplnit všechna pole J.materiál a pole J.montáž nenulovými kladnými číslicemi. V případech, kdy položka
D67: neobsahuje žádný materiál je přípustné, aby pole J.materiál bylo vyplněno nulou. V případech, kdy položka neobsahuje žádnou montáž je přípustné,
D68: aby pole J.montáž bylo vyplněno nulou. Není však přípustné, aby obě pole - J.materiál, J.Montáž byly u jedné položky vyplněny nulou.
C73: Rekapitulace stavby
C74: Název | F74: Povinný | H74: Popis | I74: Typ | J74: Max. počet
C75: atributu | F75: (A/N) | J75: znaků
C77: Stavba | F77: A | H77: Kód a Název stavby spojený pomlčkou | I77: String | J77: 20 + 120
C78: Místo | F78: N | H78: Místo stavby | I78: String | J78: 50
C79: Datum | F79: A | H79: Datum vykonaného exportu | I79: Date
C80: Zadavatel | F80: N | H80: Zadavatel zadaní | I80: String | J80: 50
C81: IČ | F81: N | H81: IČ zadavatele zadaní | I81: String | J81: 20
C82: DIČ | F82: N | H82: DIČ zadavatele zadaní | I82: String | J82: 20
C83: Uchazeč | F83: N | H83: Uchazeč veřejné zakázky | I83: String | J83: 50
C84: Projektant | F84: N | H84: Projektant | I84: String | J84: 50
C85: Poznámka | F85: N | H85: Poznámka k zadání | I85: String | J85: 255
C86: Sazba DPH | F86: A | H86: Rekapitulace sazeb DPH u položek soupisů | I86: eGSazbaDph
C87: Základna DPH | F87: A | H87: Základna DPH určena součtem celkové ceny z položek soupisů | I87: Double
C88: Hodnota DPH | F88: A | H88: Hodnota DPH | I88: Double
C89: Cena bez DPH | F89: A | H89: Celková cena bez DPH za celou stavbu. Sčítává se ze všech listů. | I89: Double
C90: Cena s DPH | F90: A | H90: Celková cena s DPH za celou stavbu | I90: Double
C95: Rekapitulace objektů stavby a soupisů prací
C96: Název | F96: Povinný | H96: Popis | I96: Typ | J96: Max. počet
C97: atributu | F97: (A/N) | J97: znaků
C99: Stavba | F99: A | H99: Přebírá se z Rekapitulace stavby | I99: String | J99: 20 + 120
C100: Místo | F100: N | H100: Přebírá se z Rekapitulace stavby | I100: String | J100: 50
C101: Datum | F101: A | H101: Přebírá se z Rekapitulace stavby | I101: Date
C102: Zadavatel | F102: N | H102: Přebírá se z Rekapitulace stavby | I102: String | J102: 50
C103: Projektant | F103: N | H103: Přebírá se z Rekapitulace stavby | I103: String | J103: 50
C104: Uchazeč | F104: N | H104: Přebírá se z Rekapitulace stavby | I104: String | J104: 50
C105: Kód | F105: A | H105: Kód objektu | I105: String | J105: 20
C106: Objektu, Soupis prací | F106: A | H106: Název objektu | I106: String | J106: 120
C107: Cena bez DPH | F107: A | H107: Cena bez DPH za daný objekt | I107: Double
C108: Cena s DPH | F108: A | H108: Cena spolu s DPH za daný objekt | I108: Double
C109: Typ | F109: A | H109: Typ zakázky | I109: eGTypZakazky
C114: Krycí list soupisu
C115: Název | F115: Povinný | H115: Popis | I115: Typ | J115: Max. počet
C116: atributu | F116: (A/N) | J116: znaků
C118: Stavba | F118: A | H118: Přebírá se z Rekapitulace stavby | I118: String | J118: 20 + 120
C119: Objekt | F119: A | H119: Kód a název objektu | I119: String | J119: 20 + 120
C120: Soupis | F120: A | H120: Kód a název soupisu | I120: String | J120: 20 + 120
C121: KSO | F121: N | H121: Klasifikace stavebního objektu | I121: String | J121: 15
C122: Místo | F122: N | H122: Přebírá se z Rekapitulace stavby | I122: String | J122: 50
C123: Zadavatel | F123: N | H123: Přebírá se z Rekapitulace stavby | I123: String | J123: 50
C124: Uchazeč | F124: N | H124: Přebírá se z Rekapitulace stavby | I124: String | J124: 50
C125: Projektant | F125: N | H125: Přebírá se z Rekapitulace stavby | I125: String | J125: 50
C126: Poznámka | F126: N | H126: Poznámka k soupisu prací | I126: String | J126: 255
C127: Sazba DPH | F127: A | H127: Rekapitulace sazeb DPH na položkách aktuálního soupisu | I127: eGSazbaDph
C128: Základna DPH | F128: A | H128: Základna DPH určena součtem celkové ceny z položek aktuálního soupisu | I128: Double
C129: Hodnota DPH | F129: A | H129: Hodnota DPH | I129: Double
C130: Cena bez DPH | F130: A | H130: Cena bez DPH za daný soupis | I130: Double
C131: Cena s DPH | F131: A | H131: Cena s DPH za daný soupis | I131: Double
C136: Rekapitulace členění soupisu prací
C137: Název | F137: Povinný | H137: Popis | I137: Typ | J137: Max. počet
C138: atributu | F138: (A/N) | J138: znaků
C140: Stavba | F140: A | H140: Přebírá se z Rekapitulace stavby | I140: String | J140: 20 + 120
C141: Objekt | F141: A | H141: Kód a název objektu, přebírá se z Krycího listu soupisu | I141: String | J141: 20 + 120
C142: Soupis | F142: A | H142: Kód a název objektu, přebírá se z Krycího listu soupisu | I142: String | J142: 20 + 120
C143: Místo | F143: N | H143: Přebírá se z Rekapitulace stavby | I143: String | J143: 50
C144: Datum | F144: A | H144: Přebírá se z Rekapitulace stavby | I144: Date
C145: Zadavatel | F145: N | H145: Přebírá se z Rekapitulace stavby | I145: String | J145: 50
C146: Projektant | F146: N | H146: Přebírá se z Rekapitulace stavby | I146: String | J146: 50
C147: Uchazeč | F147: N | H147: Přebírá se z Rekapitulace stavby | I147: String | J147: 50
C148: Kód dílu - Popis | F148: A | H148: Kód a název dílu ze soupisu | I148: String | J148: 20 + 100
C149: Cena celkem | F149: A | H149: Cena celkem za díl ze soupisu | I149: Double
C154: Soupis prací
C155: Název | F155: Povinný | H155: Popis | I155: Typ | J155: Max. počet
C156: atributu | F156: (A/N) | J156: znaků
C158: Stavba | F158: A | H158: Přebírá se z Rekapitulace stavby | I158: String | J158: 20 + 120
C159: Objekt | F159: A | H159: Kód a název objektu | I159: String | J159: 20 + 120
C160: Soupis | F160: A | H160: Přebírá se z Krycího listu soupisu | I160: String | J160: 20 + 120
C161: Místo | F161: N | H161: Přebírá se z Krycího listu soupisu | I161: String | J161: 50
C162: Datum | F162: A | H162: Přebírá se z Krycího listu soupisu | I162: Date
C163: Zadavatel | F163: N | H163: Přebírá se z Krycího listu soupisu | I163: String | J163: 50
C164: Projektant | F164: N | H164: Přebírá se z Krycího listu soupisu | I164: String | J164: 50
C165: Uchazeč | F165: N | H165: Přebírá se z Krycího listu soupisu | I165: String | J165: 50
C166: PČ | F166: A | H166: Pořadové číslo položky soupisu | I166: Long
C167: Typ | F167: A | H167: Typ položky soupisu | I167: eGTypPolozky | J167: 1
C168: Kód | F168: A | H168: Kód položky ze soupisu | I168: String | J168: 20
C169: Popis | F169: A | H169: Popis položky ze soupisu | I169: String | J169: 255
C170: MJ | F170: A | H170: Měrná jednotka položky | I170: String | J170: 10
C171: Množství | F171: A | H171: Množství položky soupisu | I171: Double
C172: J.Cena | F172: A | H172: Jednotková cena položky | I172: Double
C173: Cena celkem | F173: A | H173: Cena celkem vyčíslena jako J.Cena * Množství | I173: Double
C174: Cenová soustava | F174: N | H174: Zařazení položky do cenové soustavy | I174: String | J174: 50
C179: Datová věta
C180: Typ věty | F180: Hodnota | H180: Význam
C182: eGSazbaDPH | F182: základní | H182: Základní sazba DPH
F183: snížená | H183: Snížená sazba DPH
F184: nulová | H184: Nulová sazba DPH
F185: zákl. přenesená | H185: Základní sazba DPH přenesená
F186: sníž. přenesená | H186: Snížená sazba DPH přenesená
C188: eGTypZakazky | F188: STA | H188: Stavební objekt
F189: PRO | H189: Provozní soubor
F190: ING | H190: Inženýrský objekt
F191: VON | H191: Vedlejší a ostatní náklady
F192: OST | H192: Ostatní náklady
C194: eGTypPolozky | F194: 1 | H194: Položka typu HSV
F195: 2 | H195: Položka typu PSV
F196: 3 | H196: Položka typu M
F197: 4 | H197: Položka typu OST
